Workbook

Sheet День
C1: 08:00:00 | D1: 08:15:00 | E1: 08:30:00 | F1: 08:45:00 | G1: 09:00:00 | H1: 09:15:00 | I1: 09:30:00 | J1: 09:45:00 | K1: 10:00:00 | L1: 10:15:00 | M1: 10:30:00 | N1: 10:45:00 | O1: 11:00:00 | P1: 11:15:00 | Q1: 11:30:00 | R1: 11:45:00 | S1: 12:00:00 | T1: 12:15:00 | U1: 12:30:00 | V1: 12:45:00 | W1: 13:00:00 | X1: 13:15:00 | Y1: 13:30:00 | Z1: 13:45:00 | AA1: 14:00:00 | AB1: 14:15:00 | AC1: 14:30:00 | AD1: 14:45:00 | AE1: 15:00:00 | AF1: 15:15:00 | AG1: 15:30:00 | AH1: 15:45:00 | AI1: 16:00:00 | AJ1: 16:15:00 | AK1: 16:30:00 | AL1: 16:45:00 | AM1: 17:00:00 | AN1: 17:15:00 | AO1: 17:30:00 | AP1: 17:45:00 | AQ1: 18:00:00 | AR1: 18:15:00 | AS1: 18:30:00 | AT1: 18:45:00 | AU1: 19:00:00 | AV1: 19:15:00 | AW1: 19:30:00 | AX1: 19:45:00 | AY1: 20:00:00 | AZ1: 20:00:00 | BA1: Фактически вагонов
A2: ЛВП х2 По плану | C2: =IFERROR(TEXT(--MID(-MIN(IF(IF(IF(Расчеты!$C2:$C16="z",Расчеты!$B2:$B16)>=C1,Расчеты!$B2:$B16)<D1,Расчеты!$B2:$B16)),2,15),"ч:мм "),"") ->  | D2: =IFERROR(TEXT(--MID(-MIN(IF(IF(IF(Расчеты!$C2:$C16="z",Расчеты!$B2:$B16)>=D1,Расчеты!$B2:$B16)<E1,Расчеты!$B2:$B16)),2,15),"ч:мм "),"") ->  | E2: =IFERROR(TEXT(--MID(-MIN(IF(IF(IF(Расчеты!$C2:$C16="z",Расчеты!$B2:$B16)>=E1,Расчеты!$B2:$B16)<F1,Расчеты!$B2:$B16)),2,15),"ч:мм "),"") ->  | F2: =IFERROR(TEXT(--MID(-MIN(IF(IF(IF(Расчеты!$C2:$C16="z",Расчеты!$B2:$B16)>=F1,Расчеты!$B2:$B16)<G1,Расчеты!$B2:$B16)),2,15),"ч:мм "),"") -> 8:57 | G2: =IFERROR(TEXT(--MID(-MIN(IF(IF(IF(Расчеты!$C2:$C16="z",Расчеты!$B2:$B16)>=G1,Расчеты!$B2:$B16)<H1,Расчеты!$B2:$B16)),2,15),"ч:мм "),"") ->  | H2: =IFERROR(TEXT(--MID(-MIN(IF(IF(IF(Расчеты!$C2:$C16="z",Расчеты!$B2:$B16)>=H1,Расчеты!$B2:$B16)<I1,Расчеты!$B2:$B16)),2,15),"ч:мм "),"") ->  | I2: =IFERROR(TEXT(--MID(-MIN(IF(IF(IF(Расчеты!$C2:$C16="z",Расчеты!$B2:$B16)>=I1,Расчеты!$B2:$B16)<J1,Расчеты!$B2:$B16)),2,15),"ч:мм "),"") ->  | J2: =IFERROR(TEXT(--MID(-MIN(IF(IF(IF(Расчеты!$C2:$C16="z",Расчеты!$B2:$B16)>=J1,Расчеты!$B2:$B16)<K1,Расчеты!$B2:$B16)),2,15),"ч:мм "),"") ->  | K2: =IFERROR(TEXT(--MID(-MIN(IF(IF(IF(Расчеты!$C2:$C16="z",Расчеты!$B2:$B16)>=K1,Расчеты!$B2:$B16)<L1,Расчеты!$B2:$B16)),2,15),"ч:мм "),"") -> 10:09 | L2: =IFERROR(TEXT(--MID(-MIN(IF(IF(IF(Расчеты!$C2:$C16="z",Расчеты!$B2:$B16)>=L1,Расчеты!$B2:$B16)<M1,Расчеты!$B2:$B16)),2,15),"ч:мм "),"") ->  | M2: =IFERROR(TEXT(--MID(-MIN(IF(IF(IF(Расчеты!$C2:$C16="z",Расчеты!$B2:$B16)>=M1,Расчеты!$B2:$B16)<N1,Расчеты!$B2:$B16)),2,15),"ч:мм "),"") ->  | N2: =IFERROR(TEXT(--MID(-MIN(IF(IF(IF(Расчеты!$C2:$C16="z",Расчеты!$B2:$B16)>=N1,Расчеты!$B2:$B16)<O1,Расчеты!$B2:$B16)),2,15),"ч:мм "),"") ->  | O2: =IFERROR(TEXT(--MID(-MIN(IF(IF(IF(Расчеты!$C2:$C16="z",Расчеты!$B2:$B16)>=O1,Расчеты!$B2:$B16)<P1,Расчеты!$B2:$B16)),2,15),"ч:мм "),"") ->  | P2: =IFERROR(TEXT(--MID(-MIN(IF(IF(IF(Расчеты!$C2:$C16="z",Расчеты!$B2:$B16)>=P1,Расчеты!$B2:$B16)<Q1,Расчеты!$B2:$B16)),2,15),"ч:мм "),"") -> 11:21 | Q2: =IFERROR(TEXT(--MID(-MIN(IF(IF(IF(Расчеты!$C2:$C16="z",Расчеты!$B2:$B16)>=Q1,Расчеты!$B2:$B16)<R1,Расчеты!$B2:$B16)),2,15),"ч:мм "),"") ->  | R2: =IFERROR(TEXT(--MID(-MIN(IF(IF(IF(Расчеты!$C2:$C16="z",Расчеты!$B2:$B16)>=R1,Расчеты!$B2:$B16)<S1,Расчеты!$B2:$B16)),2,15),"ч:мм "),"") ->  | S2: =IFERROR(TEXT(--MID(-MIN(IF(IF(IF(Расчеты!$C2:$C16="z",Расчеты!$B2:$B16)>=S1,Расчеты!$B2:$B16)<T1,Расчеты!$B2:$B16)),2,15),"ч:мм "),"") ->  | T2: =IFERROR(TEXT(--MID(-MIN(IF(IF(IF(Расчеты!$C2:$C16="z",Расчеты!$B2:$B16)>=T1,Расчеты!$B2:$B16)<U1,Расчеты!$B2:$B16)),2,15),"ч:мм "),"") ->  | U2: =IFERROR(TEXT(--MID(-MIN(IF(IF(IF(Расчеты!$C2:$C16="z",Расчеты!$B2:$B16)>=U1,Расчеты!$B2:$B16)<V1,Расчеты!$B2:$B16)),2,15),"ч:мм "),"") -> 12:33 | V2: =IFERROR(TEXT(--MID(-MIN(IF(IF(IF(Расчеты!$C2:$C16="z",Расчеты!$B2:$B16)>=V1,Расчеты!$B2:$B16)<W1,Расчеты!$B2:$B16)),2,15),"ч:мм "),"") ->  | W2: =IFERROR(TEXT(--MID(-MIN(IF(IF(IF(Расчеты!$C2:$C16="z",Расчеты!$B2:$B16)>=W1,Расчеты!$B2:$B16)<X1,Расчеты!$B2:$B16)),2,15),"ч:мм "),"") ->  | X2: =IFERROR(TEXT(--MID(-MIN(IF(IF(IF(Расчеты!$C2:$C16="z",Расчеты!$B2:$B16)>=X1,Расчеты!$B2:$B16)<Y1,Расчеты!$B2:$B16)),2,15),"ч:мм "),"") ->  | Y2: =IFERROR(TEXT(--MID(-MIN(IF(IF(IF(Расчеты!$C2:$C16="z",Расчеты!$B2:$B16)>=Y1,Расчеты!$B2:$B16)<Z1,Расчеты!$B2:$B16)),2,15),"ч:мм "),"") ->  | Z2: =IFERROR(TEXT(--MID(-MIN(IF(IF(IF(Расчеты!$C2:$C16="z",Расчеты!$B2:$B16)>=Z1,Расчеты!$B2:$B16)<AA1,Расчеты!$B2:$B16)),2,15),"ч:мм "),"") -> 13:46 | AA2: =IFERROR(TEXT(--MID(-MIN(IF(IF(IF(Расчеты!$C2:$C16="z",Расчеты!$B2:$B16)>=AA1,Расчеты!$B2:$B16)<AB1,Расчеты!$B2:$B16)),2,15),"ч:мм "),"") ->  | AB2: =IFERROR(TEXT(--MID(-MIN(IF(IF(IF(Расчеты!$C2:$C16="z",Расчеты!$B2:$B16)>=AB1,Расчеты!$B2:$B16)<AC1,Расчеты!$B2:$B16)),2,15),"ч:мм "),"") ->  | AC2: =IFERROR(TEXT(--MID(-MIN(IF(IF(IF(Расчеты!$C2:$C16="z",Расчеты!$B2:$B16)>=AC1,Расчеты!$B2:$B16)<AD1,Расчеты!$B2:$B16)),2,15),"ч:мм "),"") ->  | AD2: =IFERROR(TEXT(--MID(-MIN(IF(IF(IF(Расчеты!$C2:$C16="z",Расчеты!$B2:$B16)>=AD1,Расчеты!$B2:$B16)<AE1,Расчеты!$B2:$B16)),2,15),"ч:мм "),"") -> 14:58 | AE2: =IFERROR(TEXT(--MID(-MIN(IF(IF(IF(Расчеты!$C2:$C16="z",Расчеты!$B2:$B16)>=AE1,Расчеты!$B2:$B16)<AF1,Расчеты!$B2:$B16)),2,15),"ч:мм "),"") ->  | AF2: =IFERROR(TEXT(--MID(-MIN(IF(IF(IF(Расчеты!$C2:$C16="z",Расчеты!$B2:$B16)>=AF1,Расчеты!$B2:$B16)<AG1,Расчеты!$B2:$B16)),2,15),"ч:мм "),"") ->  | AG2: =IFERROR(TEXT(--MID(-MIN(IF(IF(IF(Расчеты!$C2:$C16="z",Расчеты!$B2:$B16)>=AG1,Расчеты!$B2:$B16)<AH1,Расчеты!$B2:$B16)),2,15),"ч:мм "),"") ->  | AH2: =IFERROR(TEXT(--MID(-MIN(IF(IF(IF(Расчеты!$C2:$C16="z",Расчеты!$B2:$B16)>=AH1,Расчеты!$B2:$B16)<AI1,Расчеты!$B2:$B16)),2,15),"ч:мм "),"") ->  | AI2: =IFERROR(TEXT(--MID(-MIN(IF(IF(IF(Расчеты!$C2:$C16="z",Расчеты!$B2:$B16)>=AI1,Расчеты!$B2:$B16)<AJ1,Расчеты!$B2:$B16)),2,15),"ч:мм "),"") -> 16:10 | AJ2: =IFERROR(TEXT(--MID(-MIN(IF(IF(IF(Расчеты!$C2:$C16="z",Расчеты!$B2:$B16)>=AJ1,Расчеты!$B2:$B16)<AK1,Расчеты!$B2:$B16)),2,15),"ч:мм "),"") ->  | AK2: =IFERROR(TEXT(--MID(-MIN(IF(IF(IF(Расчеты!$C2:$C16="z",Расчеты!$B2:$B16)>=AK1,Расчеты!$B2:$B16)<AL1,Расчеты!$B2:$B16)),2,15),"ч:мм "),"") ->  | AL2: =IFERROR(TEXT(--MID(-MIN(IF(IF(IF(Расчеты!$C2:$C16="z",Расчеты!$B2:$B16)>=AL1,Расчеты!$B2:$B16)<AM1,Расчеты!$B2:$B16)),2,15),"ч:мм "),"") ->  | AM2: =IFERROR(TEXT(--MID(-MIN(IF(IF(IF(Расчеты!$C2:$C16="z",Расчеты!$B2:$B16)>=AM1,Расчеты!$B2:$B16)<AN1,Расчеты!$B2:$B16)),2,15),"ч:мм "),"") ->  | AN2: =IFERROR(TEXT(--MID(-MIN(IF(IF(IF(Расчеты!$C2:$C16="z",Расчеты!$B2:$B16)>=AN1,Расчеты!$B2:$B16)<AO1,Расчеты!$B2:$B16)),2,15),"ч:мм "),"") -> 17:22 | AO2: =IFERROR(TEXT(--MID(-MIN(IF(IF(IF(Расчеты!$C2:$C16="z",Расчеты!$B2:$B16)>=AO1,Расчеты!$B2:$B16)<AP1,Расчеты!$B2:$B16)),2,15),"ч:мм "),"") ->  | AP2: =IFERROR(TEXT(--MID(-MIN(IF(IF(IF(Расчеты!$C2:$C16="z",Расчеты!$B2:$B16)>=AP1,Расчеты!$B2:$B16)<AQ1,Расчеты!$B2:$B16)),2,15),"ч:мм "),"") ->  | AQ2: =IFERROR(TEXT(--MID(-MIN(IF(IF(IF(Расчеты!$C2:$C16="z",Расчеты!$B2:$B16)>=AQ1,Расчеты!$B2:$B16)<AR1,Расчеты!$B2:$B16)),2,15),"ч:мм "),"") ->  | AR2: =IFERROR(TEXT(--MID(-MIN(IF(IF(IF(Расчеты!$C2:$C16="z",Расчеты!$B2:$B16)>=AR1,Расчеты!$B2:$B16)<AS1,Расчеты!$B2:$B16)),2,15),"ч:мм "),"") ->  | AS2: =IFERROR(TEXT(--MID(-MIN(IF(IF(IF(Расчеты!$C2:$C16="z",Расчеты!$B2:$B16)>=AS1,Расчеты!$B2:$B16)<AT1,Расчеты!$B2:$B16)),2,15),"ч:мм "),"") -> 18:35 | AT2: =IFERROR(TEXT(--MID(-MIN(IF(IF(IF(Расчеты!$C2:$C16="z",Расчеты!$B2:$B16)>=AT1,Расчеты!$B2:$B16)<AU1,Расчеты!$B2:$B16)),2,15),"ч:мм "),"") ->  | AU2: =IFERROR(TEXT(--MID(-MIN(IF(IF(IF(Расчеты!$C2:$C16="z",Расчеты!$B2:$B16)>=AU1,Расчеты!$B2:$B16)<AV1,Расчеты!$B2:$B16)),2,15),"ч:мм "),"") ->  | AV2: =IFERROR(TEXT(--MID(-MIN(IF(IF(IF(Расчеты!$C2:$C16="z",Расчеты!$B2:$B16)>=AV1,Расчеты!$B2:$B16)<AW1,Расчеты!$B2:$B16)),2,15),"ч:мм "),"") ->  | AW2: =IFERROR(TEXT(--MID(-MIN(IF(IF(IF(Расчеты!$C2:$C16="z",Расчеты!$B2:$B16)>=AW1,Расчеты!$B2:$B16)<AX1,Расчеты!$B2:$B16)),2,15),"ч:мм "),"") ->  | AX2: =IFERROR(TEXT(--MID(-MIN(IF(IF(IF(Расчеты!$C2:$C16="z",Расчеты!$B2:$B16)>=AX1,Расчеты!$B2:$B16)<AY1,Расчеты!$B2:$B16)),2,15),"ч:мм "),"") -> 19:47 | AY2: =IFERROR(TEXT(--MID(-MIN(IF(IF(IF(Расчеты!$C2:$C16="z",Расчеты!$B2:$B16)>=AY1,Расчеты!$B2:$B16)<AZ1,Расчеты!$B2:$B16)),2,15),"ч:мм "),"") ->  | AZ2: =IFERROR(TEXT(--MID(-MIN(IF(IF(IF(Расчеты!$C2:$C16="z",Расчеты!$B2:$B16)>=AZ1,Расчеты!$B2:$B16)<BA1,Расчеты!$B2:$B16)),2,15),"ч:мм "),"") -> 20:59
A3: Кол-во вагонов
A4: Забрали по плану
A5: факт загрузки
C6: =IFERROR(IF((C5-C2)<0,"",C5-C2),"") ->  | D6: =IFERROR(IF((D5-D2)<0,"",D5-D2),"") -> 
A7: Х120 По плану | C7: =IFERROR(TEXT(--MID(-MIN(IF(IF(IF(Расчеты!$C2:$C13="z",Расчеты!$E2:$E13)>=C1,Расчеты!$E2:$E13)<D1,Расчеты!$E2:$E13)),2,15),"ч:мм "),"") ->  | D7: =IFERROR(TEXT(--MID(-MIN(IF(IF(IF(Расчеты!$C2:$C13="z",Расчеты!$E2:$E13)>=D1,Расчеты!$E2:$E13)<E1,Расчеты!$E2:$E13)),2,15),"ч:мм "),"") ->  | E7: =IFERROR(TEXT(--MID(-MIN(IF(IF(IF(Расчеты!$C2:$C13="z",Расчеты!$E2:$E13)>=E1,Расчеты!$E2:$E13)<F1,Расчеты!$E2:$E13)),2,15),"ч:мм "),"") ->  | F7: =IFERROR(TEXT(--MID(-MIN(IF(IF(IF(Расчеты!$C2:$C13="z",Расчеты!$E2:$E13)>=F1,Расчеты!$E2:$E13)<G1,Расчеты!$E2:$E13)),2,15),"ч:мм "),"") ->  | G7: =IFERROR(TEXT(--MID(-MIN(IF(IF(IF(Расчеты!$C2:$C13="z",Расчеты!$E2:$E13)>=G1,Расчеты!$E2:$E13)<H1,Расчеты!$E2:$E13)),2,15),"ч:мм "),"") -> 9:02 | H7: =IFERROR(TEXT(--MID(-MIN(IF(IF(IF(Расчеты!$C2:$C13="z",Расчеты!$E2:$E13)>=H1,Расчеты!$E2:$E13)<I1,Расчеты!$E2:$E13)),2,15),"ч:мм "),"") ->  | I7: =IFERROR(TEXT(--MID(-MIN(IF(IF(IF(Расчеты!$C2:$C13="z",Расчеты!$E2:$E13)>=I1,Расчеты!$E2:$E13)<J1,Расчеты!$E2:$E13)),2,15),"ч:мм "),"") ->  | J7: =IFERROR(TEXT(--MID(-MIN(IF(IF(IF(Расчеты!$C2:$C13="z",Расчеты!$E2:$E13)>=J1,Расчеты!$E2:$E13)<K1,Расчеты!$E2:$E13)),2,15),"ч:мм "),"") ->  | K7: =IFERROR(TEXT(--MID(-MIN(IF(IF(IF(Расчеты!$C2:$C13="z",Расчеты!$E2:$E13)>=K1,Расчеты!$E2:$E13)<L1,Расчеты!$E2:$E13)),2,15),"ч:мм "),"") ->  | L7: =IFERROR(TEXT(--MID(-MIN(IF(IF(IF(Расчеты!$C2:$C13="z",Расчеты!$E2:$E13)>=L1,Расчеты!$E2:$E13)<M1,Расчеты!$E2:$E13)),2,15),"ч:мм "),"") ->  | M7: =IFERROR(TEXT(--MID(-MIN(IF(IF(IF(Расчеты!$C2:$C13="z",Расчеты!$E2:$E13)>=M1,Расчеты!$E2:$E13)<N1,Расчеты!$E2:$E13)),2,15),"ч:мм "),"") -> 10:35 | N7: =IFERROR(TEXT(--MID(-MIN(IF(IF(IF(Расчеты!$C2:$C13="z",Расчеты!$E2:$E13)>=N1,Расчеты!$E2:$E13)<O1,Расчеты!$E2:$E13)),2,15),"ч:мм "),"") ->  | O7: =IFERROR(TEXT(--MID(-MIN(IF(IF(IF(Расчеты!$C2:$C13="z",Расчеты!$E2:$E13)>=O1,Расчеты!$E2:$E13)<P1,Расчеты!$E2:$E13)),2,15),"ч:мм "),"") ->  | P7: =IFERROR(TEXT(--MID(-MIN(IF(IF(IF(Расчеты!$C2:$C13="z",Расчеты!$E2:$E13)>=P1,Расчеты!$E2:$E13)<Q1,Расчеты!$E2:$E13)),2,15),"ч:мм "),"") ->  | Q7: =IFERROR(TEXT(--MID(-MIN(IF(IF(IF(Расчеты!$C2:$C13="z",Расчеты!$E2:$E13)>=Q1,Расчеты!$E2:$E13)<R1,Расчеты!$E2:$E13)),2,15),"ч:мм "),"") ->  | R7: =IFERROR(TEXT(--MID(-MIN(IF(IF(IF(Расчеты!$C2:$C13="z",Расчеты!$E2:$E13)>=R1,Расчеты!$E2:$E13)<S1,Расчеты!$E2:$E13)),2,15),"ч:мм "),"") ->  | S7: =IFERROR(TEXT(--MID(-MIN(IF(IF(IF(Расчеты!$C2:$C13="z",Расчеты!$E2:$E13)>=S1,Расчеты!$E2:$E13)<T1,Расчеты!$E2:$E13)),2,15),"ч:мм "),"") -> 12:08 | T7: =IFERROR(TEXT(--MID(-MIN(IF(IF(IF(Расчеты!$C2:$C13="z",Расчеты!$E2:$E13)>=T1,Расчеты!$E2:$E13)<U1,Расчеты!$E2:$E13)),2,15),"ч:мм "),"") ->  | U7: =IFERROR(TEXT(--MID(-MIN(IF(IF(IF(Расчеты!$C2:$C13="z",Расчеты!$E2:$E13)>=U1,Расчеты!$E2:$E13)<V1,Расчеты!$E2:$E13)),2,15),"ч:мм "),"") ->  | V7: =IFERROR(TEXT(--MID(-MIN(IF(IF(IF(Расчеты!$C2:$C13="z",Расчеты!$E2:$E13)>=V1,Расчеты!$E2:$E13)<W1,Расчеты!$E2:$E13)),2,15),"ч:мм "),"") ->  | W7: =IFERROR(TEXT(--MID(-MIN(IF(IF(IF(Расчеты!$C2:$C13="z",Расчеты!$E2:$E13)>=W1,Расчеты!$E2:$E13)<X1,Расчеты!$E2:$E13)),2,15),"ч:мм "),"") ->  | X7: =IFERROR(TEXT(--MID(-MIN(IF(IF(IF(Расчеты!$C2:$C13="z",Расчеты!$E2:$E13)>=X1,Расчеты!$E2:$E13)<Y1,Расчеты!$E2:$E13)),2,15),"ч:мм "),"") ->  | Y7: =IFERROR(TEXT(--MID(-MIN(IF(IF(IF(Расчеты!$C2:$C13="z",Расчеты!$E2:$E13)>=Y1,Расчеты!$E2:$E13)<Z1,Расчеты!$E2:$E13)),2,15),"ч:мм "),"") -> 13:41 | Z7: =IFERROR(TEXT(--MID(-MIN(IF(IF(IF(Расчеты!$C2:$C13="z",Расчеты!$E2:$E13)>=Z1,Расчеты!$E2:$E13)<AA1,Расчеты!$E2:$E13)),2,15),"ч:мм "),"") ->  | AA7: =IFERROR(TEXT(--MID(-MIN(IF(IF(IF(Расчеты!$C2:$C13="z",Расчеты!$E2:$E13)>=AA1,Расчеты!$E2:$E13)<AB1,Расчеты!$E2:$E13)),2,15),"ч:мм "),"") ->  | AB7: =IFERROR(TEXT(--MID(-MIN(IF(IF(IF(Расчеты!$C2:$C13="z",Расчеты!$E2:$E13)>=AB1,Расчеты!$E2:$E13)<AC1,Расчеты!$E2:$E13)),2,15),"ч:мм "),"") ->  | AC7: =IFERROR(TEXT(--MID(-MIN(IF(IF(IF(Расчеты!$C2:$C13="z",Расчеты!$E2:$E13)>=AC1,Расчеты!$E2:$E13)<AD1,Расчеты!$E2:$E13)),2,15),"ч:мм "),"") ->  | AD7: =IFERROR(TEXT(--MID(-MIN(IF(IF(IF(Расчеты!$C2:$C13="z",Расчеты!$E2:$E13)>=AD1,Расчеты!$E2:$E13)<AE1,Расчеты!$E2:$E13)),2,15),"ч:мм "),"") ->  | AE7: =IFERROR(TEXT(--MID(-MIN(IF(IF(IF(Расчеты!$C2:$C13="z",Расчеты!$E2:$E13)>=AE1,Расчеты!$E2:$E13)<AF1,Расчеты!$E2:$E13)),2,15),"ч:мм "),"") -> 15:14 | AF7: =IFERROR(TEXT(--MID(-MIN(IF(IF(IF(Расчеты!$C2:$C13="z",Расчеты!$E2:$E13)>=AF1,Расчеты!$E2:$E13)<AG1,Расчеты!$E2:$E13)),2,15),"ч:мм "),"") ->  | AG7: =IFERROR(TEXT(--MID(-MIN(IF(IF(IF(Расчеты!$C2:$C13="z",Расчеты!$E2:$E13)>=AG1,Расчеты!$E2:$E13)<AH1,Расчеты!$E2:$E13)),2,15),"ч:мм "),"") ->  | AH7: =IFERROR(TEXT(--MID(-MIN(IF(IF(IF(Расчеты!$C2:$C13="z",Расчеты!$E2:$E13)>=AH1,Расчеты!$E2:$E13)<AI1,Расчеты!$E2:$E13)),2,15),"ч:мм "),"") ->  | AI7: =IFERROR(TEXT(--MID(-MIN(IF(IF(IF(Расчеты!$C2:$C13="z",Расчеты!$E2:$E13)>=AI1,Расчеты!$E2:$E13)<AJ1,Расчеты!$E2:$E13)),2,15),"ч:мм "),"") ->  | AJ7: =IFERROR(TEXT(--MID(-MIN(IF(IF(IF(Расчеты!$C2:$C13="z",Расчеты!$E2:$E13)>=AJ1,Расчеты!$E2:$E13)<AK1,Расчеты!$E2:$E13)),2,15),"ч:мм "),"") ->  | AK7: =IFERROR(TEXT(--MID(-MIN(IF(IF(IF(Расчеты!$C2:$C13="z",Расчеты!$E2:$E13)>=AK1,Расчеты!$E2:$E13)<AL1,Расчеты!$E2:$E13)),2,15),"ч:мм "),"") ->  | AL7: =IFERROR(TEXT(--MID(-MIN(IF(IF(IF(Расчеты!$C2:$C13="z",Расчеты!$E2:$E13)>=AL1,Расчеты!$E2:$E13)<AM1,Расчеты!$E2:$E13)),2,15),"ч:мм "),"") -> 16:47 | AM7: =IFERROR(TEXT(--MID(-MIN(IF(IF(IF(Расчеты!$C2:$C13="z",Расчеты!$E2:$E13)>=AM1,Расчеты!$E2:$E13)<AN1,Расчеты!$E2:$E13)),2,15),"ч:мм "),"") ->  | AN7: =IFERROR(TEXT(--MID(-MIN(IF(IF(IF(Расчеты!$C2:$C13="z",Расчеты!$E2:$E13)>=AN1,Расчеты!$E2:$E13)<AO1,Расчеты!$E2:$E13)),2,15),"ч:мм "),"") ->  | AO7: =IFERROR(TEXT(--MID(-MIN(IF(IF(IF(Расчеты!$C2:$C13="z",Расчеты!$E2:$E13)>=AO1,Расчеты!$E2:$E13)<AP1,Расчеты!$E2:$E13)),2,15),"ч:мм "),"") ->  | AP7: =IFERROR(TEXT(--MID(-MIN(IF(IF(IF(Расчеты!$C2:$C13="z",Расчеты!$E2:$E13)>=AP1,Расчеты!$E2:$E13)<AQ1,Расчеты!$E2:$E13)),2,15),"ч:мм "),"") ->  | AQ7: =IFERROR(TEXT(--MID(-MIN(IF(IF(IF(Расчеты!$C2:$C13="z",Расчеты!$E2:$E13)>=AQ1,Расчеты!$E2:$E13)<AR1,Расчеты!$E2:$E13)),2,15),"ч:мм "),"") ->  | AR7: =IFERROR(TEXT(--MID(-MIN(IF(IF(IF(Расчеты!$C2:$C13="z",Расчеты!$E2:$E13)>=AR1,Расчеты!$E2:$E13)<AS1,Расчеты!$E2:$E13)),2,15),"ч:мм "),"") -> 18:20 | AS7: =IFERROR(TEXT(--MID(-MIN(IF(IF(IF(Расчеты!$C2:$C13="z",Расчеты!$E2:$E13)>=AS1,Расчеты!$E2:$E13)<AT1,Расчеты!$E2:$E13)),2,15),"ч:мм "),"") ->  | AT7: =IFERROR(TEXT(--MID(-MIN(IF(IF(IF(Расчеты!$C2:$C13="z",Расчеты!$E2:$E13)>=AT1,Расчеты!$E2:$E13)<AU1,Расчеты!$E2:$E13)),2,15),"ч:мм "),"") ->  | AU7: =IFERROR(TEXT(--MID(-MIN(IF(IF(IF(Расчеты!$C2:$C13="z",Расчеты!$E2:$E13)>=AU1,Расчеты!$E2:$E13)<AV1,Расчеты!$E2:$E13)),2,15),"ч:мм "),"") ->  | AV7: =IFERROR(TEXT(--MID(-MIN(IF(IF(IF(Расчеты!$C2:$C13="z",Расчеты!$E2:$E13)>=AV1,Расчеты!$E2:$E13)<AW1,Расчеты!$E2:$E13)),2,15),"ч:мм "),"") ->  | AW7: =IFERROR(TEXT(--MID(-MIN(IF(IF(IF(Расчеты!$C2:$C13="z",Расчеты!$E2:$E13)>=AW1,Расчеты!$E2:$E13)<AX1,Расчеты!$E2:$E13)),2,15),"ч:мм "),"") ->  | AX7: =IFERROR(TEXT(--MID(-MIN(IF(IF(IF(Расчеты!$C2:$C13="z",Расчеты!$E2:$E13)>=AX1,Расчеты!$E2:$E13)<AY1,Расчеты!$E2:$E13)),2,15),"ч:мм "),"") -> 19:52 | AY7: =IFERROR(TEXT(--MID(-MIN(IF(IF(IF(Расчеты!$C2:$C13="z",Расчеты!$E2:$E13)>=AY1,Расчеты!$E2:$E13)<AZ1,Расчеты!$E2:$E13)),2,15),"ч:мм "),"") ->  | AZ7: =IFERROR(TEXT(--MID(-MIN(IF(IF(IF(Расчеты!$C2:$C13="z",Расчеты!$E2:$E13)>=AZ1,Расчеты!$E2:$E13)<BA1,Расчеты!$E2:$E13)),2,15),"ч:мм "),"") -> 21:25 | BA7: =COUNTIF(День!$C$8:$AY$8,"Да") -> 0
A8: Забрали по плану | BB8: =IF(BB6<Расчеты!$B$2:$K$2,IF(BC6>Расчеты!$B$2:$K$2,Расчеты!$B$2:$K$2,""),"") -> 
A9: факт загрузки
C10: =IFERROR(IF((C9-C7)<0,"",C9-C7),"") ->  | D10: =IFERROR(IF((D9-D7)<0,"",D9-D7),"") -> 
A11: Х101 По плану | C11: =IFERROR(TEXT(--MID(-MIN(IF(IF(IF(Расчеты!$F2:$F13="y",Расчеты!$H2:$H13)>=C1,Расчеты!$H2:$H13)<D1,Расчеты!$H2:$H13)),2,15),"ч:мм "),"") ->  | D11: =IFERROR(TEXT(--MID(-MIN(IF(IF(IF(Расчеты!$F2:$F13="y",Расчеты!$H2:$H13)>=D1,Расчеты!$H2:$H13)<E1,Расчеты!$H2:$H13)),2,15),"ч:мм "),"") ->  | E11: =IFERROR(TEXT(--MID(-MIN(IF(IF(IF(Расчеты!$F2:$F13="y",Расчеты!$H2:$H13)>=E1,Расчеты!$H2:$H13)<F1,Расчеты!$H2:$H13)),2,15),"ч:мм "),"") -> 8:36 | F11: =IFERROR(TEXT(--MID(-MIN(IF(IF(IF(Расчеты!$F2:$F13="y",Расчеты!$H2:$H13)>=F1,Расчеты!$H2:$H13)<G1,Расчеты!$H2:$H13)),2,15),"ч:мм "),"") ->  | G11: =IFERROR(TEXT(--MID(-MIN(IF(IF(IF(Расчеты!$F2:$F13="y",Расчеты!$H2:$H13)>=G1,Расчеты!$H2:$H13)<H1,Расчеты!$H2:$H13)),2,15),"ч:мм "),"") ->  | H11: =IFERROR(TEXT(--MID(-MIN(IF(IF(IF(Расчеты!$F2:$F13="y",Расчеты!$H2:$H13)>=H1,Расчеты!$H2:$H13)<I1,Расчеты!$H2:$H13)),2,15),"ч:мм "),"") ->  | I11: =IFERROR(TEXT(--MID(-MIN(IF(IF(IF(Расчеты!$F2:$F13="y",Расчеты!$H2:$H13)>=I1,Расчеты!$H2:$H13)<J1,Расчеты!$H2:$H13)),2,15),"ч:мм "),"") ->  | J11: =IFERROR(TEXT(--MID(-MIN(IF(IF(IF(Расчеты!$F2:$F13="y",Расчеты!$H2:$H13)>=J1,Расчеты!$H2:$H13)<K1,Расчеты!$H2:$H13)),2,15),"ч:мм "),"") -> 9:57 | K11: =IFERROR(TEXT(--MID(-MIN(IF(IF(IF(Расчеты!$F2:$F13="y",Расчеты!$H2:$H13)>=K1,Расчеты!$H2:$H13)<L1,Расчеты!$H2:$H13)),2,15),"ч:мм "),"") ->  | L11: =IFERROR(TEXT(--MID(-MIN(IF(IF(IF(Расчеты!$F2:$F13="y",Расчеты!$H2:$H13)>=L1,Расчеты!$H2:$H13)<M1,Расчеты!$H2:$H13)),2,15),"ч:мм "),"") ->  | M11: =IFERROR(TEXT(--MID(-MIN(IF(IF(IF(Расчеты!$F2:$F13="y",Расчеты!$H2:$H13)>=M1,Расчеты!$H2:$H13)<N1,Расчеты!$H2:$H13)),2,15),"ч:мм "),"") ->  | N11: =IFERROR(TEXT(--MID(-MIN(IF(IF(IF(Расчеты!$F2:$F13="y",Расчеты!$H2:$H13)>=N1,Расчеты!$H2:$H13)<O1,Расчеты!$H2:$H13)),2,15),"ч:мм "),"") ->  | O11: =IFERROR(TEXT(--MID(-MIN(IF(IF(IF(Расчеты!$F2:$F13="y",Расчеты!$H2:$H13)>=O1,Расчеты!$H2:$H13)<P1,Расчеты!$H2:$H13)),2,15),"ч:мм "),"") ->  | P11: =IFERROR(TEXT(--MID(-MIN(IF(IF(IF(Расчеты!$F2:$F13="y",Расчеты!$H2:$H13)>=P1,Расчеты!$H2:$H13)<Q1,Расчеты!$H2:$H13)),2,15),"ч:мм "),"") -> 11:18 | Q11: =IFERROR(TEXT(--MID(-MIN(IF(IF(IF(Расчеты!$F2:$F13="y",Расчеты!$H2:$H13)>=Q1,Расчеты!$H2:$H13)<R1,Расчеты!$H2:$H13)),2,15),"ч:мм "),"") ->  | R11: =IFERROR(TEXT(--MID(-MIN(IF(IF(IF(Расчеты!$F2:$F13="y",Расчеты!$H2:$H13)>=R1,Расчеты!$H2:$H13)<S1,Расчеты!$H2:$H13)),2,15),"ч:мм "),"") ->  | S11: =IFERROR(TEXT(--MID(-MIN(IF(IF(IF(Расчеты!$F2:$F13="y",Расчеты!$H2:$H13)>=S1,Расчеты!$H2:$H13)<T1,Расчеты!$H2:$H13)),2,15),"ч:мм "),"") ->  | T11: =IFERROR(TEXT(--MID(-MIN(IF(IF(IF(Расчеты!$F2:$F13="y",Расчеты!$H2:$H13)>=T1,Расчеты!$H2:$H13)<U1,Расчеты!$H2:$H13)),2,15),"ч:мм "),"") ->  | U11: =IFERROR(TEXT(--MID(-MIN(IF(IF(IF(Расчеты!$F2:$F13="y",Расчеты!$H2:$H13)>=U1,Расчеты!$H2:$H13)<V1,Расчеты!$H2:$H13)),2,15),"ч:мм "),"") -> 12:40 | V11: =IFERROR(TEXT(--MID(-MIN(IF(IF(IF(Расчеты!$F2:$F13="y",Расчеты!$H2:$H13)>=V1,Расчеты!$H2:$H13)<W1,Расчеты!$H2:$H13)),2,15),"ч:мм "),"") ->  | W11: =IFERROR(TEXT(--MID(-MIN(IF(IF(IF(Расчеты!$F2:$F13="y",Расчеты!$H2:$H13)>=W1,Расчеты!$H2:$H13)<X1,Расчеты!$H2:$H13)),2,15),"ч:мм "),"") ->  | X11: =IFERROR(TEXT(--MID(-MIN(IF(IF(IF(Расчеты!$F2:$F13="y",Расчеты!$H2:$H13)>=X1,Расчеты!$H2:$H13)<Y1,Расчеты!$H2:$H13)),2,15),"ч:мм "),"") ->  | Y11: =IFERROR(TEXT(--MID(-MIN(IF(IF(IF(Расчеты!$F2:$F13="y",Расчеты!$H2:$H13)>=Y1,Расчеты!$H2:$H13)<Z1,Расчеты!$H2:$H13)),2,15),"ч:мм "),"") ->  | Z11: =IFERROR(TEXT(--MID(-MIN(IF(IF(IF(Расчеты!$F2:$F13="y",Расчеты!$H2:$H13)>=Z1,Расчеты!$H2:$H13)<AA1,Расчеты!$H2:$H13)),2,15),"ч:мм "),"") ->  | AA11: =IFERROR(TEXT(--MID(-MIN(IF(IF(IF(Расчеты!$F2:$F13="y",Расчеты!$H2:$H13)>=AA1,Расчеты!$H2:$H13)<AB1,Расчеты!$H2:$H13)),2,15),"ч:мм "),"") -> 14:01 | AB11: =IFERROR(TEXT(--MID(-MIN(IF(IF(IF(Расчеты!$F2:$F13="y",Расчеты!$H2:$H13)>=AB1,Расчеты!$H2:$H13)<AC1,Расчеты!$H2:$H13)),2,15),"ч:мм "),"") ->  | AC11: =IFERROR(TEXT(--MID(-MIN(IF(IF(IF(Расчеты!$F2:$F13="y",Расчеты!$H2:$H13)>=AC1,Расчеты!$H2:$H13)<AD1,Расчеты!$H2:$H13)),2,15),"ч:мм "),"") ->  | AD11: =IFERROR(TEXT(--MID(-MIN(IF(IF(IF(Расчеты!$F2:$F13="y",Расчеты!$H2:$H13)>=AD1,Расчеты!$H2:$H13)<AE1,Расчеты!$H2:$H13)),2,15),"ч:мм "),"") ->  | AE11: =IFERROR(TEXT(--MID(-MIN(IF(IF(IF(Расчеты!$F2:$F13="y",Расчеты!$H2:$H13)>=AE1,Расчеты!$H2:$H13)<AF1,Расчеты!$H2:$H13)),2,15),"ч:мм "),"") ->  | AF11: =IFERROR(TEXT(--MID(-MIN(IF(IF(IF(Расчеты!$F2:$F13="y",Расчеты!$H2:$H13)>=AF1,Расчеты!$H2:$H13)<AG1,Расчеты!$H2:$H13)),2,15),"ч:мм "),"") -> 15:22 | AG11: =IFERROR(TEXT(--MID(-MIN(IF(IF(IF(Расчеты!$F2:$F13="y",Расчеты!$H2:$H13)>=AG1,Расчеты!$H2:$H13)<AH1,Расчеты!$H2:$H13)),2,15),"ч:мм "),"") ->  | AH11: =IFERROR(TEXT(--MID(-MIN(IF(IF(IF(Расчеты!$F2:$F13="y",Расчеты!$H2:$H13)>=AH1,Расчеты!$H2:$H13)<AI1,Расчеты!$H2:$H13)),2,15),"ч:мм "),"") ->  | AI11: =IFERROR(TEXT(--MID(-MIN(IF(IF(IF(Расчеты!$F2:$F13="y",Расчеты!$H2:$H13)>=AI1,Расчеты!$H2:$H13)<AJ1,Расчеты!$H2:$H13)),2,15),"ч:мм "),"") ->  | AJ11: =IFERROR(TEXT(--MID(-MIN(IF(IF(IF(Расчеты!$F2:$F13="y",Расчеты!$H2:$H13)>=AJ1,Расчеты!$H2:$H13)<AK1,Расчеты!$H2:$H13)),2,15),"ч:мм "),"") ->  | AK11: =IFERROR(TEXT(--MID(-MIN(IF(IF(IF(Расчеты!$F2:$F13="y",Расчеты!$H2:$H13)>=AK1,Расчеты!$H2:$H13)<AL1,Расчеты!$H2:$H13)),2,15),"ч:мм "),"") -> 16:43 | AL11: =IFERROR(TEXT(--MID(-MIN(IF(IF(IF(Расчеты!$F2:$F13="y",Расчеты!$H2:$H13)>=AL1,Расчеты!$H2:$H13)<AM1,Расчеты!$H2:$H13)),2,15),"ч:мм "),"") ->  | AM11: =IFERROR(TEXT(--MID(-MIN(IF(IF(IF(Расчеты!$F2:$F13="y",Расчеты!$H2:$H13)>=AM1,Расчеты!$H2:$H13)<AN1,Расчеты!$H2:$H13)),2,15),"ч:мм "),"") ->  | AN11: =IFERROR(TEXT(--MID(-MIN(IF(IF(IF(Расчеты!$F2:$F13="y",Расчеты!$H2:$H13)>=AN1,Расчеты!$H2:$H13)<AO1,Расчеты!$H2:$H13)),2,15),"ч:мм "),"") ->  | AO11: =IFERROR(TEXT(--MID(-MIN(IF(IF(IF(Расчеты!$F2:$F13="y",Расчеты!$H2:$H13)>=AO1,Расчеты!$H2:$H13)<AP1,Расчеты!$H2:$H13)),2,15),"ч:мм "),"") ->  | AP11: =IFERROR(TEXT(--MID(-MIN(IF(IF(IF(Расчеты!$F2:$F13="y",Расчеты!$H2:$H13)>=AP1,Расчеты!$H2:$H13)<AQ1,Расчеты!$H2:$H13)),2,15),"ч:мм "),"") ->  | AQ11: =IFERROR(TEXT(--MID(-MIN(IF(IF(IF(Расчеты!$F2:$F13="y",Расчеты!$H2:$H13)>=AQ1,Расчеты!$H2:$H13)<AR1,Расчеты!$H2:$H13)),2,15),"ч:мм "),"") -> 18:05 | AR11: =IFERROR(TEXT(--MID(-MIN(IF(IF(IF(Расчеты!$F2:$F13="y",Расчеты!$H2:$H13)>=AR1,Расчеты!$H2:$H13)<AS1,Расчеты!$H2:$H13)),2,15),"ч:мм "),"") ->  | AS11: =IFERROR(TEXT(--MID(-MIN(IF(IF(IF(Расчеты!$F2:$F13="y",Расчеты!$H2:$H13)>=AS1,Расчеты!$H2:$H13)<AT1,Расчеты!$H2:$H13)),2,15),"ч:мм "),"") ->  | AT11: =IFERROR(TEXT(--MID(-MIN(IF(IF(IF(Расчеты!$F2:$F13="y",Расчеты!$H2:$H13)>=AT1,Расчеты!$H2:$H13)<AU1,Расчеты!$H2:$H13)),2,15),"ч:мм "),"") ->  | AU11: =IFERROR(TEXT(--MID(-MIN(IF(IF(IF(Расчеты!$F2:$F13="y",Расчеты!$H2:$H13)>=AU1,Расчеты!$H2:$H13)<AV1,Расчеты!$H2:$H13)),2,15),"ч:мм "),"") ->  | AV11: =IFERROR(TEXT(--MID(-MIN(IF(IF(IF(Расчеты!$F2:$F13="y",Расчеты!$H2:$H13)>=AV1,Расчеты!$H2:$H13)<AW1,Расчеты!$H2:$H13)),2,15),"ч:мм "),"") -> 19:26 | AW11: =IFERROR(TEXT(--MID(-MIN(IF(IF(IF(Расчеты!$F2:$F13="y",Расчеты!$H2:$H13)>=AW1,Расчеты!$H2:$H13)<AX1,Расчеты!$H2:$H13)),2,15),"ч:мм "),"") ->  | AX11: =IFERROR(TEXT(--MID(-MIN(IF(IF(IF(Расчеты!$F2:$F13="y",Расчеты!$H2:$H13)>=AX1,Расчеты!$H2:$H13)<AY1,Расчеты!$H2:$H13)),2,15),"ч:мм "),"") ->  | AY11: =IFERROR(TEXT(--MID(-MIN(IF(IF(IF(Расчеты!$F2:$F13="y",Расчеты!$H2:$H13)>=AY1,Расчеты!$H2:$H13)<AZ1,Расчеты!$H2:$H13)),2,15),"ч:мм "),"") ->  | AZ11: =IFERROR(TEXT(--MID(-MIN(IF(IF(IF(Расчеты!$F2:$F13="y",Расчеты!$H2:$H13)>=AZ1,Расчеты!$H2:$H13)<BA1,Расчеты!$H2:$H13)),2,15),"ч:мм "),"") -> 20:47 | BA11: =COUNTIF(День!$C$12:$AY$12,"Да") -> 0
A12: Забрали по плану
A13: факт загрузки
C14: =IFERROR(IF((C13-C11)<0,"",C13-C11),"") ->  | D14: =IFERROR(IF((D13-D11)<0,"",D13-D11),"") ->  | E14: =IFERROR(IF((E13-E11)<0,"",E13-E11),"") ->  | F14: =IFERROR(IF((F13-F11)<0,"",F13-F11),"") -> 
A15: Время выгрузки последнего вагона ЛВПх2 | B15: 07:45:00 | U15: Часы
A16: время выгрузки последнего вагона Х120 | B16: 07:30:00 | U16: 45356.66958
A17: время выгрузки последнего вагона Х 101 | B17: 07:15:00
A21: План ЛВП | B21: 18
A22: План Х120 | B22: 7
A23: План Х101 | B23: 8

Sheet Ночь
C1: 20:00:00 | D1: =C1+TIME(0,15,0) -> 20:15:00 | E1: =D1+TIME(0,15,0) -> 20:30:00 | F1: 20:45:00 | G1: 21:00:00 | H1: 21:15:00 | I1: 21:30:00 | J1: 21:45:00 | K1: 22:00:00 | L1: 22:15:00 | M1: 22:30:00 | N1: 22:45:00 | O1: 23:00:00 | P1: =O1+TIME(0,15,0) -> 23:15:00 | Q1: 23:30:00 | R1: 23:45:00 | S1: 1 | T1: 1.010416667 | U1: 1.020833333 | V1: 1.03125 | W1: 1.041666667 | X1: 1.052083333 | Y1: 1.0625 | Z1: 1.072916667 | AA1: 1.083333333 | AB1: 1.09375 | AC1: 1.104166667 | AD1: 1.114583333 | AE1: 1.125 | AF1: 1.135416667 | AG1: 1.145833333 | AH1: 1.15625 | AI1: 1.166666667 | AJ1: 1.177083333 | AK1: 1.1875 | AL1: 1.197916667 | AM1: 1.208333333 | AN1: 1.21875 | AO1: 1.229166667 | AP1: 1.239583333 | AQ1: 1.25 | AR1: 1.260416667 | AS1: 1.270833333 | AT1: 1.28125 | AU1: 1.291666667 | AV1: 1.302083333 | AW1: 1.3125 | AX1: 1.322916667 | AY1: =AX1+TIME(0,15,0) -> 1.333333333 | AZ1: 08:10:00 | BA1: Фактически вагонов
A2: ЛВП х2 По плану | C2: =IFERROR(TEXT(--MID(-MIN(IF(IF(IF(Расчеты!$M3:$M16="z",Расчеты!$L3:$L16)>=C1,Расчеты!$L3:$L16)<D1,Расчеты!$L3:$L16)),2,15),"ч:мм "),"") ->  | D2: =IFERROR(TEXT(--MID(-MIN(IF(IF(IF(Расчеты!$M3:$M16="z",Расчеты!$L3:$L16)>=D1,Расчеты!$L3:$L16)<E1,Расчеты!$L3:$L16)),2,15),"ч:мм "),"") ->  | E2: =IFERROR(TEXT(--MID(-MIN(IF(IF(IF(Расчеты!$M3:$M16="z",Расчеты!$L3:$L16)>=E1,Расчеты!$L3:$L16)<F1,Расчеты!$L3:$L16)),2,15),"ч:мм "),"") ->  | F2: =IFERROR(TEXT(--MID(-MIN(IF(IF(IF(Расчеты!$M3:$M16="z",Расчеты!$L3:$L16)>=F1,Расчеты!$L3:$L16)<G1,Расчеты!$L3:$L16)),2,15),"ч:мм "),"") -> 20:59 | G2: =IFERROR(TEXT(--MID(-MIN(IF(IF(IF(Расчеты!$M3:$M16="z",Расчеты!$L3:$L16)>=G1,Расчеты!$L3:$L16)<H1,Расчеты!$L3:$L16)),2,15),"ч:мм "),"") ->  | H2: =IFERROR(TEXT(--MID(-MIN(IF(IF(IF(Расчеты!$M3:$M16="z",Расчеты!$L3:$L16)>=H1,Расчеты!$L3:$L16)<I1,Расчеты!$L3:$L16)),2,15),"ч:мм "),"") ->  | I2: =IFERROR(TEXT(--MID(-MIN(IF(IF(IF(Расчеты!$M3:$M16="z",Расчеты!$L3:$L16)>=I1,Расчеты!$L3:$L16)<J1,Расчеты!$L3:$L16)),2,15),"ч:мм "),"") ->  | J2: =IFERROR(TEXT(--MID(-MIN(IF(IF(IF(Расчеты!$M3:$M16="z",Расчеты!$L3:$L16)>=J1,Расчеты!$L3:$L16)<K1,Расчеты!$L3:$L16)),2,15),"ч:мм "),"") ->  | K2: =IFERROR(TEXT(--MID(-MIN(IF(IF(IF(Расчеты!$M3:$M16="z",Расчеты!$L3:$L16)>=K1,Расчеты!$L3:$L16)<L1,Расчеты!$L3:$L16)),2,15),"ч:мм "),"") -> 22:11 | L2: =IFERROR(TEXT(--MID(-MIN(IF(IF(IF(Расчеты!$M3:$M16="z",Расчеты!$L3:$L16)>=L1,Расчеты!$L3:$L16)<M1,Расчеты!$L3:$L16)),2,15),"ч:мм "),"") ->  | M2: =IFERROR(TEXT(--MID(-MIN(IF(IF(IF(Расчеты!$M3:$M16="z",Расчеты!$L3:$L16)>=M1,Расчеты!$L3:$L16)<N1,Расчеты!$L3:$L16)),2,15),"ч:мм "),"") ->  | N2: =IFERROR(TEXT(--MID(-MIN(IF(IF(IF(Расчеты!$M3:$M16="z",Расчеты!$L3:$L16)>=N1,Расчеты!$L3:$L16)<O1,Расчеты!$L3:$L16)),2,15),"ч:мм "),"") ->  | O2: =IFERROR(TEXT(--MID(-MIN(IF(IF(IF(Расчеты!$M3:$M16="z",Расчеты!$L3:$L16)>=O1,Расчеты!$L3:$L16)<P1,Расчеты!$L3:$L16)),2,15),"ч:мм "),"") ->  | P2: =IFERROR(TEXT(--MID(-MIN(IF(IF(IF(Расчеты!$M3:$M16="z",Расчеты!$L3:$L16)>=P1,Расчеты!$L3:$L16)<Q1,Расчеты!$L3:$L16)),2,15),"ч:мм "),"") -> 23:23 | Q2: =IFERROR(TEXT(--MID(-MIN(IF(IF(IF(Расчеты!$M3:$M16="z",Расчеты!$L3:$L16)>=Q1,Расчеты!$L3:$L16)<R1,Расчеты!$L3:$L16)),2,15),"ч:мм "),"") ->  | R2: =IFERROR(TEXT(--MID(-MIN(IF(IF(IF(Расчеты!$M3:$M16="z",Расчеты!$L3:$L16)>=R1,Расчеты!$L3:$L16)<S1,Расчеты!$L3:$L16)),2,15),"ч:мм "),"") ->  | S2: =IFERROR(TEXT(--MID(-MIN(IF(IF(IF(Расчеты!$M7:$M16="z",Расчеты!$L7:$L16)>=S1,Расчеты!$L7:$L16)<T1,Расчеты!$L7:$L16)),2,15),"ч:мм "),"") ->  | T2: =IFERROR(TEXT(--MID(-MIN(IF(IF(IF(Расчеты!$M7:$M16="z",Расчеты!$L7:$L16)>=T1,Расчеты!$L7:$L16)<U1,Расчеты!$L7:$L16)),2,15),"ч:мм "),"") ->  | U2: =IFERROR(TEXT(--MID(-MIN(IF(IF(IF(Расчеты!$M7:$M16="z",Расчеты!$L7:$L16)>=U1,Расчеты!$L7:$L16)<V1,Расчеты!$L7:$L16)),2,15),"ч:мм "),"") -> 0:35 | V2: =IFERROR(TEXT(--MID(-MIN(IF(IF(IF(Расчеты!$M7:$M16="z",Расчеты!$L7:$L16)>=V1,Расчеты!$L7:$L16)<W1,Расчеты!$L7:$L16)),2,15),"ч:мм "),"") ->  | W2: =IFERROR(TEXT(--MID(-MIN(IF(IF(IF(Расчеты!$M7:$M16="z",Расчеты!$L7:$L16)>=W1,Расчеты!$L7:$L16)<X1,Расчеты!$L7:$L16)),2,15),"ч:мм "),"") ->  | X2: =IFERROR(TEXT(--MID(-MIN(IF(IF(IF(Расчеты!$M7:$M16="z",Расчеты!$L7:$L16)>=X1,Расчеты!$L7:$L16)<Y1,Расчеты!$L7:$L16)),2,15),"ч:мм "),"") ->  | Y2: =IFERROR(TEXT(--MID(-MIN(IF(IF(IF(Расчеты!$M7:$M16="z",Расчеты!$L7:$L16)>=Y1,Расчеты!$L7:$L16)<Z1,Расчеты!$L7:$L16)),2,15),"ч:мм "),"") ->  | Z2: =IFERROR(TEXT(--MID(-MIN(IF(IF(IF(Расчеты!$M7:$M16="z",Расчеты!$L7:$L16)>=Z1,Расчеты!$L7:$L16)<AA1,Расчеты!$L7:$L16)),2,15),"ч:мм "),"") -> 1:48 | AA2: =IFERROR(TEXT(--MID(-MIN(IF(IF(IF(Расчеты!$M7:$M16="z",Расчеты!$L7:$L16)>=AA1,Расчеты!$L7:$L16)<AB1,Расчеты!$L7:$L16)),2,15),"ч:мм "),"") ->  | AB2: =IFERROR(TEXT(--MID(-MIN(IF(IF(IF(Расчеты!$M7:$M16="z",Расчеты!$L7:$L16)>=AB1,Расчеты!$L7:$L16)<AC1,Расчеты!$L7:$L16)),2,15),"ч:мм "),"") ->  | AC2: =IFERROR(TEXT(--MID(-MIN(IF(IF(IF(Расчеты!$M7:$M16="z",Расчеты!$L7:$L16)>=AC1,Расчеты!$L7:$L16)<AD1,Расчеты!$L7:$L16)),2,15),"ч:мм "),"") ->  | AD2: =IFERROR(TEXT(--MID(-MIN(IF(IF(IF(Расчеты!$M7:$M16="z",Расчеты!$L7:$L16)>=AD1,Расчеты!$L7:$L16)<AE1,Расчеты!$L7:$L16)),2,15),"ч:мм "),"") ->  | AE2: =IFERROR(TEXT(--MID(-MIN(IF(IF(IF(Расчеты!$M7:$M16="z",Расчеты!$L7:$L16)>=AE1,Расчеты!$L7:$L16)<AF1,Расчеты!$L7:$L16)),2,15),"ч:мм "),"") -> 3:00 | AF2: =IFERROR(TEXT(--MID(-MIN(IF(IF(IF(Расчеты!$M7:$M16="z",Расчеты!$L7:$L16)>=AF1,Расчеты!$L7:$L16)<AG1,Расчеты!$L7:$L16)),2,15),"ч:мм "),"") ->  | AG2: =IFERROR(TEXT(--MID(-MIN(IF(IF(IF(Расчеты!$M7:$M16="z",Расчеты!$L7:$L16)>=AG1,Расчеты!$L7:$L16)<AH1,Расчеты!$L7:$L16)),2,15),"ч:мм "),"") ->  | AH2: =IFERROR(TEXT(--MID(-MIN(IF(IF(IF(Расчеты!$M7:$M16="z",Расчеты!$L7:$L16)>=AH1,Расчеты!$L7:$L16)<AI1,Расчеты!$L7:$L16)),2,15),"ч:мм "),"") ->  | AI2: =IFERROR(TEXT(--MID(-MIN(IF(IF(IF(Расчеты!$M7:$M16="z",Расчеты!$L7:$L16)>=AI1,Расчеты!$L7:$L16)<AJ1,Расчеты!$L7:$L16)),2,15),"ч:мм "),"") -> 4:12 | AJ2: =IFERROR(TEXT(--MID(-MIN(IF(IF(IF(Расчеты!$M7:$M16="z",Расчеты!$L7:$L16)>=AJ1,Расчеты!$L7:$L16)<AK1,Расчеты!$L7:$L16)),2,15),"ч:мм "),"") ->  | AK2: =IFERROR(TEXT(--MID(-MIN(IF(IF(IF(Расчеты!$M7:$M16="z",Расчеты!$L7:$L16)>=AK1,Расчеты!$L7:$L16)<AL1,Расчеты!$L7:$L16)),2,15),"ч:мм "),"") ->  | AL2: =IFERROR(TEXT(--MID(-MIN(IF(IF(IF(Расчеты!$M7:$M16="z",Расчеты!$L7:$L16)>=AL1,Расчеты!$L7:$L16)<AM1,Расчеты!$L7:$L16)),2,15),"ч:мм "),"") ->  | AM2: =IFERROR(TEXT(--MID(-MIN(IF(IF(IF(Расчеты!$M7:$M16="z",Расчеты!$L7:$L16)>=AM1,Расчеты!$L7:$L16)<AN1,Расчеты!$L7:$L16)),2,15),"ч:мм "),"") ->  | AN2: =IFERROR(TEXT(--MID(-MIN(IF(IF(IF(Расчеты!$M7:$M16="z",Расчеты!$L7:$L16)>=AN1,Расчеты!$L7:$L16)<AO1,Расчеты!$L7:$L16)),2,15),"ч:мм "),"") -> 5:24 | AO2: =IFERROR(TEXT(--MID(-MIN(IF(IF(IF(Расчеты!$M7:$M16="z",Расчеты!$L7:$L16)>=AO1,Расчеты!$L7:$L16)<AP1,Расчеты!$L7:$L16)),2,15),"ч:мм "),"") ->  | AP2: =IFERROR(TEXT(--MID(-MIN(IF(IF(IF(Расчеты!$M7:$M16="z",Расчеты!$L7:$L16)>=AP1,Расчеты!$L7:$L16)<AQ1,Расчеты!$L7:$L16)),2,15),"ч:мм "),"") ->  | AQ2: =IFERROR(TEXT(--MID(-MIN(IF(IF(IF(Расчеты!$M7:$M16="z",Расчеты!$L7:$L16)>=AQ1,Расчеты!$L7:$L16)<AR1,Расчеты!$L7:$L16)),2,15),"ч:мм "),"") ->  | AR2: =IFERROR(TEXT(--MID(-MIN(IF(IF(IF(Расчеты!$M7:$M16="z",Расчеты!$L7:$L16)>=AR1,Расчеты!$L7:$L16)<AS1,Расчеты!$L7:$L16)),2,15),"ч:мм "),"") ->  | AS2: =IFERROR(TEXT(--MID(-MIN(IF(IF(IF(Расчеты!$M7:$M16="z",Расчеты!$L7:$L16)>=AS1,Расчеты!$L7:$L16)<AT1,Расчеты!$L7:$L16)),2,15),"ч:мм "),"") -> 6:37 | AT2: =IFERROR(TEXT(--MID(-MIN(IF(IF(IF(Расчеты!$M7:$M16="z",Расчеты!$L7:$L16)>=AT1,Расчеты!$L7:$L16)<AU1,Расчеты!$L7:$L16)),2,15),"ч:мм "),"") ->  | AU2: =IFERROR(TEXT(--MID(-MIN(IF(IF(IF(Расчеты!$M7:$M16="z",Расчеты!$L7:$L16)>=AU1,Расчеты!$L7:$L16)<AV1,Расчеты!$L7:$L16)),2,15),"ч:мм "),"") ->  | AV2: =IFERROR(TEXT(--MID(-MIN(IF(IF(IF(Расчеты!$M7:$M16="z",Расчеты!$L7:$L16)>=AV1,Расчеты!$L7:$L16)<AW1,Расчеты!$L7:$L16)),2,15),"ч:мм "),"") ->  | AW2: =IFERROR(TEXT(--MID(-MIN(IF(IF(IF(Расчеты!$M7:$M16="z",Расчеты!$L7:$L16)>=AW1,Расчеты!$L7:$L16)<AX1,Расчеты!$L7:$L16)),2,15),"ч:мм "),"") ->  | AX2: =IFERROR(TEXT(--MID(-MIN(IF(IF(IF(Расчеты!$M7:$M16="z",Расчеты!$L7:$L16)>=AX1,Расчеты!$L7:$L16)<AY1,Расчеты!$L7:$L16)),2,15),"ч:мм "),"") -> 7:49 | AY2: =IFERROR(TEXT(--MID(-MIN(IF(IF(IF(Расчеты!$M7:$M16="z",Расчеты!$L7:$L16)>=AY1,Расчеты!$L7:$L16)<AZ1,Расчеты!$L7:$L16)),2,15),"ч:мм "),"") ->  | AZ2: =IFERROR(TEXT(--MID(-MIN(IF(IF(IF(Расчеты!$M3:$M16="z",Расчеты!$L3:$L16)>=AZ1,Расчеты!$L3:$L16)<BA1,Расчеты!$L3:$L16)),2,15),"ч:мм "),"") -> 20:59
A3: Кол-во Вагонов
A4: Забрали по плану | U4: Нет
A5: факт загрузки | U5: 01:00:00
C6: =IFERROR(IF((C5-C2)<0,"",C5-C2),"") ->  | D6: =IFERROR(IF((D5-D2)<0,"",D5-D2),"") ->  | U6: 00:25:00
A7: Х120 По плану | C7: =IFERROR(TEXT(--MID(-MIN(IF(IF(IF(Расчеты!$M3:$M14="z",Расчеты!$O3:$O14)>=C1,Расчеты!$O3:$O14)<D1,Расчеты!$O3:$O14)),2,15),"ч:мм "),"") ->  | D7: =IFERROR(TEXT(--MID(-MIN(IF(IF(IF(Расчеты!$M3:$M14="z",Расчеты!$O3:$O14)>=D1,Расчеты!$O3:$O14)<E1,Расчеты!$O3:$O14)),2,15),"ч:мм "),"") ->  | E7: =IFERROR(TEXT(--MID(-MIN(IF(IF(IF(Расчеты!$M3:$M14="z",Расчеты!$O3:$O14)>=E1,Расчеты!$O3:$O14)<F1,Расчеты!$O3:$O14)),2,15),"ч:мм "),"") ->  | F7: =IFERROR(TEXT(--MID(-MIN(IF(IF(IF(Расчеты!$M3:$M14="z",Расчеты!$O3:$O14)>=F1,Расчеты!$O3:$O14)<G1,Расчеты!$O3:$O14)),2,15),"ч:мм "),"") ->  | G7: =IFERROR(TEXT(--MID(-MIN(IF(IF(IF(Расчеты!$M3:$M14="z",Расчеты!$O3:$O14)>=G1,Расчеты!$O3:$O14)<H1,Расчеты!$O3:$O14)),2,15),"ч:мм "),"") ->  | H7: =IFERROR(TEXT(--MID(-MIN(IF(IF(IF(Расчеты!$M3:$M14="z",Расчеты!$O3:$O14)>=H1,Расчеты!$O3:$O14)<I1,Расчеты!$O3:$O14)),2,15),"ч:мм "),"") -> 21:24 | I7: =IFERROR(TEXT(--MID(-MIN(IF(IF(IF(Расчеты!$M3:$M14="z",Расчеты!$O3:$O14)>=I1,Расчеты!$O3:$O14)<J1,Расчеты!$O3:$O14)),2,15),"ч:мм "),"") ->  | J7: =IFERROR(TEXT(--MID(-MIN(IF(IF(IF(Расчеты!$M3:$M14="z",Расчеты!$O3:$O14)>=J1,Расчеты!$O3:$O14)<K1,Расчеты!$O3:$O14)),2,15),"ч:мм "),"") ->  | K7: =IFERROR(TEXT(--MID(-MIN(IF(IF(IF(Расчеты!$M3:$M14="z",Расчеты!$O3:$O14)>=K1,Расчеты!$O3:$O14)<L1,Расчеты!$O3:$O14)),2,15),"ч:мм "),"") ->  | L7: =IFERROR(TEXT(--MID(-MIN(IF(IF(IF(Расчеты!$M3:$M14="z",Расчеты!$O3:$O14)>=L1,Расчеты!$O3:$O14)<M1,Расчеты!$O3:$O14)),2,15),"ч:мм "),"") ->  | M7: =IFERROR(TEXT(--MID(-MIN(IF(IF(IF(Расчеты!$M3:$M14="z",Расчеты!$O3:$O14)>=M1,Расчеты!$O3:$O14)<N1,Расчеты!$O3:$O14)),2,15),"ч:мм "),"") ->  | N7: =IFERROR(TEXT(--MID(-MIN(IF(IF(IF(Расчеты!$M3:$M14="z",Расчеты!$O3:$O14)>=N1,Расчеты!$O3:$O14)<O1,Расчеты!$O3:$O14)),2,15),"ч:мм "),"") -> 22:57 | O7: =IFERROR(TEXT(--MID(-MIN(IF(IF(IF(Расчеты!$M3:$M14="z",Расчеты!$O3:$O14)>=O1,Расчеты!$O3:$O14)<P1,Расчеты!$O3:$O14)),2,15),"ч:мм "),"") ->  | P7: =IFERROR(TEXT(--MID(-MIN(IF(IF(IF(Расчеты!$M3:$M14="z",Расчеты!$O3:$O14)>=P1,Расчеты!$O3:$O14)<Q1,Расчеты!$O3:$O14)),2,15),"ч:мм "),"") ->  | Q7: =IFERROR(TEXT(--MID(-MIN(IF(IF(IF(Расчеты!$M3:$M14="z",Расчеты!$O3:$O14)>=Q1,Расчеты!$O3:$O14)<R1,Расчеты!$O3:$O14)),2,15),"ч:мм "),"") ->  | R7: =IFERROR(TEXT(--MID(-MIN(IF(IF(IF(Расчеты!$M3:$M14="z",Расчеты!$O3:$O14)>=R1,Расчеты!$O3:$O14)<S1,Расчеты!$O3:$O14)),2,15),"ч:мм "),"") ->  | S7: =IFERROR(TEXT(--MID(-MIN(IF(IF(IF(Расчеты!$M3:$M14="z",Расчеты!$O3:$O14)>=S1,Расчеты!$O3:$O14)<T1,Расчеты!$O3:$O14)),2,15),"ч:мм "),"") ->  | T7: =IFERROR(TEXT(--MID(-MIN(IF(IF(IF(Расчеты!$M3:$M14="z",Расчеты!$O3:$O14)>=T1,Расчеты!$O3:$O14)<U1,Расчеты!$O3:$O14)),2,15),"ч:мм "),"") ->  | U7: =IFERROR(TEXT(--MID(-MIN(IF(IF(IF(Расчеты!$M3:$M14="z",Расчеты!$O3:$O14)>=U1,Расчеты!$O3:$O14)<V1,Расчеты!$O3:$O14)),2,15),"ч:мм "),"") -> 0:30 | V7: =IFERROR(TEXT(--MID(-MIN(IF(IF(IF(Расчеты!$M3:$M14="z",Расчеты!$O3:$O14)>=V1,Расчеты!$O3:$O14)<W1,Расчеты!$O3:$O14)),2,15),"ч:мм "),"") ->  | W7: =IFERROR(TEXT(--MID(-MIN(IF(IF(IF(Расчеты!$M3:$M14="z",Расчеты!$O3:$O14)>=W1,Расчеты!$O3:$O14)<X1,Расчеты!$O3:$O14)),2,15),"ч:мм "),"") ->  | X7: =IFERROR(TEXT(--MID(-MIN(IF(IF(IF(Расчеты!$M3:$M14="z",Расчеты!$O3:$O14)>=X1,Расчеты!$O3:$O14)<Y1,Расчеты!$O3:$O14)),2,15),"ч:мм "),"") ->  | Y7: =IFERROR(TEXT(--MID(-MIN(IF(IF(IF(Расчеты!$M3:$M14="z",Расчеты!$O3:$O14)>=Y1,Расчеты!$O3:$O14)<Z1,Расчеты!$O3:$O14)),2,15),"ч:мм "),"") ->  | Z7: =IFERROR(TEXT(--MID(-MIN(IF(IF(IF(Расчеты!$M3:$M14="z",Расчеты!$O3:$O14)>=Z1,Расчеты!$O3:$O14)<AA1,Расчеты!$O3:$O14)),2,15),"ч:мм "),"") ->  | AA7: =IFERROR(TEXT(--MID(-MIN(IF(IF(IF(Расчеты!$M3:$M14="z",Расчеты!$O3:$O14)>=AA1,Расчеты!$O3:$O14)<AB1,Расчеты!$O3:$O14)),2,15),"ч:мм "),"") -> 2:03 | AB7: =IFERROR(TEXT(--MID(-MIN(IF(IF(IF(Расчеты!$M3:$M14="z",Расчеты!$O3:$O14)>=AB1,Расчеты!$O3:$O14)<AC1,Расчеты!$O3:$O14)),2,15),"ч:мм "),"") ->  | AC7: =IFERROR(TEXT(--MID(-MIN(IF(IF(IF(Расчеты!$M3:$M14="z",Расчеты!$O3:$O14)>=AC1,Расчеты!$O3:$O14)<AD1,Расчеты!$O3:$O14)),2,15),"ч:мм "),"") ->  | AD7: =IFERROR(TEXT(--MID(-MIN(IF(IF(IF(Расчеты!$M3:$M14="z",Расчеты!$O3:$O14)>=AD1,Расчеты!$O3:$O14)<AE1,Расчеты!$O3:$O14)),2,15),"ч:мм "),"") ->  | AE7: =IFERROR(TEXT(--MID(-MIN(IF(IF(IF(Расчеты!$M3:$M14="z",Расчеты!$O3:$O14)>=AE1,Расчеты!$O3:$O14)<AF1,Расчеты!$O3:$O14)),2,15),"ч:мм "),"") ->  | AF7: =IFERROR(TEXT(--MID(-MIN(IF(IF(IF(Расчеты!$M3:$M14="z",Расчеты!$O3:$O14)>=AF1,Расчеты!$O3:$O14)<AG1,Расчеты!$O3:$O14)),2,15),"ч:мм "),"") ->  | AG7: =IFERROR(TEXT(--MID(-MIN(IF(IF(IF(Расчеты!$M3:$M14="z",Расчеты!$O3:$O14)>=AG1,Расчеты!$O3:$O14)<AH1,Расчеты!$O3:$O14)),2,15),"ч:мм "),"") -> 3:36 | AH7: =IFERROR(TEXT(--MID(-MIN(IF(IF(IF(Расчеты!$M3:$M14="z",Расчеты!$O3:$O14)>=AH1,Расчеты!$O3:$O14)<AI1,Расчеты!$O3:$O14)),2,15),"ч:мм "),"") ->  | AI7: =IFERROR(TEXT(--MID(-MIN(IF(IF(IF(Расчеты!$M3:$M14="z",Расчеты!$O3:$O14)>=AI1,Расчеты!$O3:$O14)<AJ1,Расчеты!$O3:$O14)),2,15),"ч:мм "),"") ->  | AJ7: =IFERROR(TEXT(--MID(-MIN(IF(IF(IF(Расчеты!$M3:$M14="z",Расчеты!$O3:$O14)>=AJ1,Расчеты!$O3:$O14)<AK1,Расчеты!$O3:$O14)),2,15),"ч:мм "),"") ->  | AK7: =IFERROR(TEXT(--MID(-MIN(IF(IF(IF(Расчеты!$M3:$M14="z",Расчеты!$O3:$O14)>=AK1,Расчеты!$O3:$O14)<AL1,Расчеты!$O3:$O14)),2,15),"ч:мм "),"") ->  | AL7: =IFERROR(TEXT(--MID(-MIN(IF(IF(IF(Расчеты!$M3:$M14="z",Расчеты!$O3:$O14)>=AL1,Расчеты!$O3:$O14)<AM1,Расчеты!$O3:$O14)),2,15),"ч:мм "),"") ->  | AM7: =IFERROR(TEXT(--MID(-MIN(IF(IF(IF(Расчеты!$M3:$M14="z",Расчеты!$O3:$O14)>=AM1,Расчеты!$O3:$O14)<AN1,Расчеты!$O3:$O14)),2,15),"ч:мм "),"") -> 5:09 | AN7: =IFERROR(TEXT(--MID(-MIN(IF(IF(IF(Расчеты!$M3:$M14="z",Расчеты!$O3:$O14)>=AN1,Расчеты!$O3:$O14)<AO1,Расчеты!$O3:$O14)),2,15),"ч:мм "),"") ->  | AO7: =IFERROR(TEXT(--MID(-MIN(IF(IF(IF(Расчеты!$M3:$M14="z",Расчеты!$O3:$O14)>=AO1,Расчеты!$O3:$O14)<AP1,Расчеты!$O3:$O14)),2,15),"ч:мм "),"") ->  | AP7: =IFERROR(TEXT(--MID(-MIN(IF(IF(IF(Расчеты!$M3:$M14="z",Расчеты!$O3:$O14)>=AP1,Расчеты!$O3:$O14)<AQ1,Расчеты!$O3:$O14)),2,15),"ч:мм "),"") ->  | AQ7: =IFERROR(TEXT(--MID(-MIN(IF(IF(IF(Расчеты!$M3:$M14="z",Расчеты!$O3:$O14)>=AQ1,Расчеты!$O3:$O14)<AR1,Расчеты!$O3:$O14)),2,15),"ч:мм "),"") ->  | AR7: =IFERROR(TEXT(--MID(-MIN(IF(IF(IF(Расчеты!$M3:$M14="z",Расчеты!$O3:$O14)>=AR1,Расчеты!$O3:$O14)<AS1,Расчеты!$O3:$O14)),2,15),"ч:мм "),"") ->  | AS7: =IFERROR(TEXT(--MID(-MIN(IF(IF(IF(Расчеты!$M3:$M14="z",Расчеты!$O3:$O14)>=AS1,Расчеты!$O3:$O14)<AT1,Расчеты!$O3:$O14)),2,15),"ч:мм "),"") -> 6:42 | AT7: =IFERROR(TEXT(--MID(-MIN(IF(IF(IF(Расчеты!$M3:$M14="z",Расчеты!$O3:$O14)>=AT1,Расчеты!$O3:$O14)<AU1,Расчеты!$O3:$O14)),2,15),"ч:мм "),"") ->  | AU7: =IFERROR(TEXT(--MID(-MIN(IF(IF(IF(Расчеты!$M3:$M14="z",Расчеты!$O3:$O14)>=AU1,Расчеты!$O3:$O14)<AV1,Расчеты!$O3:$O14)),2,15),"ч:мм "),"") ->  | AV7: =IFERROR(TEXT(--MID(-MIN(IF(IF(IF(Расчеты!$M3:$M14="z",Расчеты!$O3:$O14)>=AV1,Расчеты!$O3:$O14)<AW1,Расчеты!$O3:$O14)),2,15),"ч:мм "),"") ->  | AW7: =IFERROR(TEXT(--MID(-MIN(IF(IF(IF(Расчеты!$M3:$M14="z",Расчеты!$O3:$O14)>=AW1,Расчеты!$O3:$O14)<AX1,Расчеты!$O3:$O14)),2,15),"ч:мм "),"") ->  | AX7: =IFERROR(TEXT(--MID(-MIN(IF(IF(IF(Расчеты!$M3:$M14="z",Расчеты!$O3:$O14)>=AX1,Расчеты!$O3:$O14)<AY1,Расчеты!$O3:$O14)),2,15),"ч:мм "),"") ->  | AY7: =IFERROR(TEXT(--MID(-MIN(IF(IF(IF(Расчеты!$M3:$M14="z",Расчеты!$O3:$O14)>=AY1,Расчеты!$O3:$O14)<#REF!,Расчеты!$O3:$O14)),2,15),"ч:мм "),"") ->  | AZ7: =IFERROR(TEXT(--MID(-MIN(IF(IF(IF(Расчеты!$M3:$M14="z",Расчеты!$O3:$O14)>=AZ1,Расчеты!$O3:$O14)<#REF!,Расчеты!$O3:$O14)),2,15),"ч:мм "),"") ->  | BA7: =COUNTIF(Ночь!$C$8:$AY$8,"Да") -> 0
A8: Забрали по плану
A9: факт загрузки
C10: =IFERROR(IF((C9-C6)<0,"",C9-C6),"") ->  | D10: =IFERROR(IF((D9-D6)<0,"",D9-D6),"") ->  | F10: 00:00:00 | G10: 00:00:00 | H10: 00:00:00 | I10: 00:00:00
A11: Х101 По плану | C11: =IFERROR(TEXT(--MID(-MIN(IF(IF(IF(Расчеты!$P3:$P14="y",Расчеты!$R3:$R14)>=C1,Расчеты!$R3:$R14)<D1,Расчеты!$R3:$R14)),2,15),"ч:мм "),"") ->  | D11: =IFERROR(TEXT(--MID(-MIN(IF(IF(IF(Расчеты!$P3:$P14="y",Расчеты!$R3:$R14)>=D1,Расчеты!$R3:$R14)<E1,Расчеты!$R3:$R14)),2,15),"ч:мм "),"") ->  | E11: =IFERROR(TEXT(--MID(-MIN(IF(IF(IF(Расчеты!$P3:$P14="y",Расчеты!$R3:$R14)>=E1,Расчеты!$R3:$R14)<F1,Расчеты!$R3:$R14)),2,15),"ч:мм "),"") ->  | F11: =IFERROR(TEXT(--MID(-MIN(IF(IF(IF(Расчеты!$P3:$P14="y",Расчеты!$R3:$R14)>=F1,Расчеты!$R3:$R14)<G1,Расчеты!$R3:$R14)),2,15),"ч:мм "),"") -> 20:47 | G11: =IFERROR(TEXT(--MID(-MIN(IF(IF(IF(Расчеты!$P3:$P14="y",Расчеты!$R3:$R14)>=G1,Расчеты!$R3:$R14)<H1,Расчеты!$R3:$R14)),2,15),"ч:мм "),"") ->  | H11: =IFERROR(TEXT(--MID(-MIN(IF(IF(IF(Расчеты!$P3:$P14="y",Расчеты!$R3:$R14)>=H1,Расчеты!$R3:$R14)<I1,Расчеты!$R3:$R14)),2,15),"ч:мм "),"") ->  | I11: =IFERROR(TEXT(--MID(-MIN(IF(IF(IF(Расчеты!$P3:$P14="y",Расчеты!$R3:$R14)>=I1,Расчеты!$R3:$R14)<J1,Расчеты!$R3:$R14)),2,15),"ч:мм "),"") ->  | J11: =IFERROR(TEXT(--MID(-MIN(IF(IF(IF(Расчеты!$P3:$P14="y",Расчеты!$R3:$R14)>=J1,Расчеты!$R3:$R14)<K1,Расчеты!$R3:$R14)),2,15),"ч:мм "),"") ->  | K11: =IFERROR(TEXT(--MID(-MIN(IF(IF(IF(Расчеты!$P3:$P14="y",Расчеты!$R3:$R14)>=K1,Расчеты!$R3:$R14)<L1,Расчеты!$R3:$R14)),2,15),"ч:мм "),"") -> 22:08 | L11: =IFERROR(TEXT(--MID(-MIN(IF(IF(IF(Расчеты!$P3:$P14="y",Расчеты!$R3:$R14)>=L1,Расчеты!$R3:$R14)<M1,Расчеты!$R3:$R14)),2,15),"ч:мм "),"") ->  | M11: =IFERROR(TEXT(--MID(-MIN(IF(IF(IF(Расчеты!$P3:$P14="y",Расчеты!$R3:$R14)>=M1,Расчеты!$R3:$R14)<N1,Расчеты!$R3:$R14)),2,15),"ч:мм "),"") ->  | N11: =IFERROR(TEXT(--MID(-MIN(IF(IF(IF(Расчеты!$P3:$P14="y",Расчеты!$R3:$R14)>=N1,Расчеты!$R3:$R14)<O1,Расчеты!$R3:$R14)),2,15),"ч:мм "),"") ->  | O11: =IFERROR(TEXT(--MID(-MIN(IF(IF(IF(Расчеты!$P3:$P14="y",Расчеты!$R3:$R14)>=O1,Расчеты!$R3:$R14)<P1,Расчеты!$R3:$R14)),2,15),"ч:мм "),"") ->  | P11: =IFERROR(TEXT(--MID(-MIN(IF(IF(IF(Расчеты!$P3:$P14="y",Расчеты!$R3:$R14)>=P1,Расчеты!$R3:$R14)<Q1,Расчеты!$R3:$R14)),2,15),"ч:мм "),"") -> 23:29 | Q11: =IFERROR(TEXT(--MID(-MIN(IF(IF(IF(Расчеты!$P3:$P14="y",Расчеты!$R3:$R14)>=Q1,Расчеты!$R3:$R14)<R1,Расчеты!$R3:$R14)),2,15),"ч:мм "),"") ->  | R11: =IFERROR(TEXT(--MID(-MIN(IF(IF(IF(Расчеты!$P3:$P14="y",Расчеты!$R3:$R14)>=R1,Расчеты!$R3:$R14)<S1,Расчеты!$R3:$R14)),2,15),"ч:мм "),"") ->  | S11: =IFERROR(TEXT(--MID(-MIN(IF(IF(IF(Расчеты!$P3:$P14="y",Расчеты!$R3:$R14)>=S1,Расчеты!$R3:$R14)<T1,Расчеты!$R3:$R14)),2,15),"ч:мм "),"") ->  | T11: =IFERROR(TEXT(--MID(-MIN(IF(IF(IF(Расчеты!$P3:$P14="y",Расчеты!$R3:$R14)>=T1,Расчеты!$R3:$R14)<U1,Расчеты!$R3:$R14)),2,15),"ч:мм "),"") ->  | U11: =IFERROR(TEXT(--MID(-MIN(IF(IF(IF(Расчеты!$P3:$P14="y",Расчеты!$R3:$R14)>=U1,Расчеты!$R3:$R14)<V1,Расчеты!$R3:$R14)),2,15),"ч:мм "),"") ->  | V11: =IFERROR(TEXT(--MID(-MIN(IF(IF(IF(Расчеты!$P3:$P14="y",Расчеты!$R3:$R14)>=V1,Расчеты!$R3:$R14)<W1,Расчеты!$R3:$R14)),2,15),"ч:мм "),"") -> 0:51 | W11: =IFERROR(TEXT(--MID(-MIN(IF(IF(IF(Расчеты!$P3:$P14="y",Расчеты!$R3:$R14)>=W1,Расчеты!$R3:$R14)<X1,Расчеты!$R3:$R14)),2,15),"ч:мм "),"") ->  | X11: =IFERROR(TEXT(--MID(-MIN(IF(IF(IF(Расчеты!$P3:$P14="y",Расчеты!$R3:$R14)>=X1,Расчеты!$R3:$R14)<Y1,Расчеты!$R3:$R14)),2,15),"ч:мм "),"") ->  | Y11: =IFERROR(TEXT(--MID(-MIN(IF(IF(IF(Расчеты!$P3:$P14="y",Расчеты!$R3:$R14)>=Y1,Расчеты!$R3:$R14)<Z1,Расчеты!$R3:$R14)),2,15),"ч:мм "),"") ->  | Z11: =IFERROR(TEXT(--MID(-MIN(IF(IF(IF(Расчеты!$P3:$P14="y",Расчеты!$R3:$R14)>=Z1,Расчеты!$R3:$R14)<AA1,Расчеты!$R3:$R14)),2,15),"ч:мм "),"") ->  | AA11: =IFERROR(TEXT(--MID(-MIN(IF(IF(IF(Расчеты!$P3:$P14="y",Расчеты!$R3:$R14)>=AA1,Расчеты!$R3:$R14)<AB1,Расчеты!$R3:$R14)),2,15),"ч:мм "),"") -> 2:12 | AB11: =IFERROR(TEXT(--MID(-MIN(IF(IF(IF(Расчеты!$P3:$P14="y",Расчеты!$R3:$R14)>=AB1,Расчеты!$R3:$R14)<AC1,Расчеты!$R3:$R14)),2,15),"ч:мм "),"") ->  | AC11: =IFERROR(TEXT(--MID(-MIN(IF(IF(IF(Расчеты!$P3:$P14="y",Расчеты!$R3:$R14)>=AC1,Расчеты!$R3:$R14)<AD1,Расчеты!$R3:$R14)),2,15),"ч:мм "),"") ->  | AD11: =IFERROR(TEXT(--MID(-MIN(IF(IF(IF(Расчеты!$P3:$P14="y",Расчеты!$R3:$R14)>=AD1,Расчеты!$R3:$R14)<AE1,Расчеты!$R3:$R14)),2,15),"ч:мм "),"") ->  | AE11: =IFERROR(TEXT(--MID(-MIN(IF(IF(IF(Расчеты!$P3:$P14="y",Расчеты!$R3:$R14)>=AE1,Расчеты!$R3:$R14)<AF1,Расчеты!$R3:$R14)),2,15),"ч:мм "),"") ->  | AF11: =IFERROR(TEXT(--MID(-MIN(IF(IF(IF(Расчеты!$P3:$P14="y",Расчеты!$R3:$R14)>=AF1,Расчеты!$R3:$R14)<AG1,Расчеты!$R3:$R14)),2,15),"ч:мм "),"") ->  | AG11: =IFERROR(TEXT(--MID(-MIN(IF(IF(IF(Расчеты!$P3:$P14="y",Расчеты!$R3:$R14)>=AG1,Расчеты!$R3:$R14)<AH1,Расчеты!$R3:$R14)),2,15),"ч:мм "),"") -> 3:33 | AH11: =IFERROR(TEXT(--MID(-MIN(IF(IF(IF(Расчеты!$P3:$P14="y",Расчеты!$R3:$R14)>=AH1,Расчеты!$R3:$R14)<AI1,Расчеты!$R3:$R14)),2,15),"ч:мм "),"") ->  | AI11: =IFERROR(TEXT(--MID(-MIN(IF(IF(IF(Расчеты!$P3:$P14="y",Расчеты!$R3:$R14)>=AI1,Расчеты!$R3:$R14)<AJ1,Расчеты!$R3:$R14)),2,15),"ч:мм "),"") ->  | AJ11: =IFERROR(TEXT(--MID(-MIN(IF(IF(IF(Расчеты!$P3:$P14="y",Расчеты!$R3:$R14)>=AJ1,Расчеты!$R3:$R14)<AK1,Расчеты!$R3:$R14)),2,15),"ч:мм "),"") ->  | AK11: =IFERROR(TEXT(--MID(-MIN(IF(IF(IF(Расчеты!$P3:$P14="y",Расчеты!$R3:$R14)>=AK1,Расчеты!$R3:$R14)<AL1,Расчеты!$R3:$R14)),2,15),"ч:мм "),"") ->  | AL11: =IFERROR(TEXT(--MID(-MIN(IF(IF(IF(Расчеты!$P3:$P14="y",Расчеты!$R3:$R14)>=AL1,Расчеты!$R3:$R14)<AM1,Расчеты!$R3:$R14)),2,15),"ч:мм "),"") -> 4:54 | AM11: =IFERROR(TEXT(--MID(-MIN(IF(IF(IF(Расчеты!$P3:$P14="y",Расчеты!$R3:$R14)>=AM1,Расчеты!$R3:$R14)<AN1,Расчеты!$R3:$R14)),2,15),"ч:мм "),"") ->  | AN11: =IFERROR(TEXT(--MID(-MIN(IF(IF(IF(Расчеты!$P3:$P14="y",Расчеты!$R3:$R14)>=AN1,Расчеты!$R3:$R14)<AO1,Расчеты!$R3:$R14)),2,15),"ч:мм "),"") ->  | AO11: =IFERROR(TEXT(--MID(-MIN(IF(IF(IF(Расчеты!$P3:$P14="y",Расчеты!$R3:$R14)>=AO1,Расчеты!$R3:$R14)<AP1,Расчеты!$R3:$R14)),2,15),"ч:мм "),"") ->  | AP11: =IFERROR(TEXT(--MID(-MIN(IF(IF(IF(Расчеты!$P3:$P14="y",Расчеты!$R3:$R14)>=AP1,Расчеты!$R3:$R14)<AQ1,Расчеты!$R3:$R14)),2,15),"ч:мм "),"") ->  | AQ11: =IFERROR(TEXT(--MID(-MIN(IF(IF(IF(Расчеты!$P3:$P14="y",Расчеты!$R3:$R14)>=AQ1,Расчеты!$R3:$R14)<AR1,Расчеты!$R3:$R14)),2,15),"ч:мм "),"") ->  | AR11: =IFERROR(TEXT(--MID(-MIN(IF(IF(IF(Расчеты!$P3:$P14="y",Расчеты!$R3:$R14)>=AR1,Расчеты!$R3:$R14)<AS1,Расчеты!$R3:$R14)),2,15),"ч:мм "),"") -> 6:16 | AS11: =IFERROR(TEXT(--MID(-MIN(IF(IF(IF(Расчеты!$P3:$P14="y",Расчеты!$R3:$R14)>=AS1,Расчеты!$R3:$R14)<AT1,Расчеты!$R3:$R14)),2,15),"ч:мм "),"") ->  | AT11: =IFERROR(TEXT(--MID(-MIN(IF(IF(IF(Расчеты!$P3:$P14="y",Расчеты!$R3:$R14)>=AT1,Расчеты!$R3:$R14)<AU1,Расчеты!$R3:$R14)),2,15),"ч:мм "),"") ->  | AU11: =IFERROR(TEXT(--MID(-MIN(IF(IF(IF(Расчеты!$P3:$P14="y",Расчеты!$R3:$R14)>=AU1,Расчеты!$R3:$R14)<AV1,Расчеты!$R3:$R14)),2,15),"ч:мм "),"") ->  | AV11: =IFERROR(TEXT(--MID(-MIN(IF(IF(IF(Расчеты!$P3:$P14="y",Расчеты!$R3:$R14)>=AV1,Расчеты!$R3:$R14)<AW1,Расчеты!$R3:$R14)),2,15),"ч:мм "),"") ->  | AW11: =IFERROR(TEXT(--MID(-MIN(IF(IF(IF(Расчеты!$P3:$P14="y",Расчеты!$R3:$R14)>=AW1,Расчеты!$R3:$R14)<AX1,Расчеты!$R3:$R14)),2,15),"ч:мм "),"") -> 7:37 | AX11: =IFERROR(TEXT(--MID(-MIN(IF(IF(IF(Расчеты!$P3:$P14="y",Расчеты!$R3:$R14)>=AX1,Расчеты!$R3:$R14)<AY1,Расчеты!$R3:$R14)),2,15),"ч:мм "),"") ->  | AY11: =IFERROR(TEXT(--MID(-MIN(IF(IF(IF(Расчеты!$P3:$P14="y",Расчеты!$R3:$R14)>=AY1,Расчеты!$R3:$R14)<AZ1,Расчеты!$R3:$R14)),2,15),"ч:мм "),"") ->  | AZ11: =IFERROR(TEXT(--MID(-MIN(IF(IF(IF(Расчеты!$P3:$P14="y",Расчеты!$R3:$R14)>=AZ1,Расчеты!$R3:$R14)<BA1,Расчеты!$R3:$R14)),2,15),"ч:мм "),"") -> 20:47 | BA11: =COUNTIF(Ночь!$C$12:$AY$12,"Да") -> 0
A12: Забрали по плану
A13: факт загрузки
C14: =IFERROR(IF((C13-C11)<0,"",C13-C11),"") ->  | D14: =IFERROR(IF((D13-D11)<0,"",D13-D11),"") -> 
A15: Время выгрузки последнего вагона ЛВПх2 | B15: =Расчеты!D26 -> 19:47 | U15: Часы
A16: время выгрузки последнего вагона Х120 | B16: =Расчеты!D27 -> 19:52 | U16: 45356.66958
A17: время выгрузки последнего вагона Х 101 | B17: =Расчеты!D28 -> 19:26
A21: План ЛВП | B21: 18
A22: План Х120 | B22: 7
A23: План Х101 | B23: 8

Sheet Расчеты
B1: ДЕНЬ | L1: НОЧЬ
A2: =IFERROR(IF(INDEX(День!$C$3:$AY$3,SMALL(IF(День!$C$3:$AY$3<>"",COLUMN(День!$C$3:$AY$3)-COLUMN(День!$C$3)+1),1))=1,$I$23/2,$I$23),$I$23) -> 01:12:13.333 | B2: =День!B15 -> 07:45:00 | C2: z | E2: =День!B16 -> 07:30:00 | F2: y | H2: =День!B17 -> 07:15:00 | K2: =IFERROR(IF(LOOKUP(TRUE,День!AE3:AY3<>"",День!AE3:AY3)=1,$I$23/2,$I$23),$I$23) -> 01:12:13.333
A3: =IFERROR(IF(INDEX(День!$C$3:$AY$3,SMALL(IF(День!$C$3:$AY$3<>"",COLUMN(День!$C$3:$AY$3)-COLUMN(День!$C$3)+1),2))=1,$I$23/2,$I$23),$I$23) -> 01:12:13.333 | B3: =IFERROR(IF(--MID(-MAX(IF(B2+I23>IF(День!C$4:AY$4="Нет",День!C$5:AY$5),День!C$5:AY$5)),2,15)>B2,MAX(IF(B2+A2>IF(День!C$4:AY$4="Нет",День!C$5:AY$5),День!C$5:AY$5)),B2+I23),B2+I23) -> 08:57:13.333 | C3: z | E3: =IFERROR(IF(--MID(-MAX(IF(E2+I$24>IF(День!C$8:AY$8="Нет",День!C$9:AY$9),День!C$9:AY$9)),2,15)>E2,MAX(IF(E2+I$24>IF(День!C$8:AY$8="Нет",День!C$9:AY$9),День!C$9:AY$9)),E2+I$24),E2+I$24) -> 09:02:51.429 | F3: y | H3: =IFERROR(IF(--MID(-MAX(IF(H2+I$25>IF(День!C$12:AY$12="Нет",День!C$13:AY$13),День!C$13:AY$13)),2,15)>H2,MAX(IF(H2+I$25>IF(День!C$12:AY$12="Нет",День!C$13:AY$13),День!C$13:AY$13)),H2+I$25),H2+I$25) -> 08:36:15 | K3: =IFERROR(IF(INDEX(Ночь!$C$3:$AY$3,SMALL(IF(Ночь!$C$3:$AY$3<>"",COLUMN(Ночь!$C$3:$AY$3)-COLUMN(Ночь!$C$3)+1),1))=1,$I$23/2,$I$23),$I$23) -> 01:12:13.333 | L3: =Ночь!B15 -> 19:47 | M3: z | O3: =Ночь!B16 -> 19:52 | P3: y | R3: =Ночь!B17 -> 19:26
A4: =IFERROR(IF(INDEX(День!$C$3:$AY$3,SMALL(IF(День!$C$3:$AY$3<>"",COLUMN(День!$C$3:$AY$3)-COLUMN(День!$C$3)+1),3))=1,$I$23/2,$I$23),$I$23) -> 01:12:13.333 | B4: =IFERROR(IF(--MID(-MAX(IF(B3+A2>IF(День!C$4:AY$4="Нет",День!C$5:AY$5),День!C$5:AY$5)),2,15)>B3,MAX(IF(B3+A2>IF(День!C$4:AY$4="Нет",День!C$5:AY$5),День!C$5:AY$5)),B3+A2),B3+A2) -> 10:09:26.667 | C4: z | E4: =IFERROR(IF(--MID(-MAX(IF(E3+I$24>IF(День!C$8:AY$8="Нет",День!C$9:AY$9),День!C$9:AY$9)),2,15)>E3,MAX(IF(E3+I$24>IF(День!C$8:AY$8="Нет",День!C$9:AY$9),День!C$9:AY$9)),E3+I$24),E3+I$24) -> 10:35:42.857 | F4: y | H4: =IFERROR(IF(--MID(-MAX(IF(H3+I$25>IF(День!C$12:AY$12="Нет",День!C$13:AY$13),День!C$13:AY$13)),2,15)>H3,MAX(IF(H3+I$25>IF(День!C$12:AY$12="Нет",День!C$13:AY$13),День!C$13:AY$13)),H3+I$25),H3+I$25) -> 09:57:30 | K4: =IFERROR(IF(INDEX(Ночь!$C$3:$AY$3,SMALL(IF(Ночь!$C$3:$AY$3<>"",COLUMN(Ночь!$C$3:$AY$3)-COLUMN(Ночь!$C$3)+1),2))=1,$I$23/2,$I$23),$I$23) -> 01:12:13.333 | L4: =IFERROR(IF(--MID(-MAX(IF(L3+K2>IF(Ночь!C$4:AY$4="Нет",Ночь!C$5:AY$5),Ночь!C$5:AY$5)),2,15)>L3,MAX(IF(L3+K2>IF(Ночь!C$4:AY$4="Нет",Ночь!C$5:AY$5),Ночь!C$5:AY$5)),L3+K2),L3+K2) -> 20:59:13.333 | M4: z | O4: =IFERROR(IF(--MID(-MAX(IF(O3+I$24>IF(Ночь!C$8:AY$8="Нет",Ночь!C$9:AY$9),Ночь!C$9:AY$9)),2,15)>O3,MAX(IF(O3+I$24>IF(Ночь!C$8:AY$8="Нет",Ночь!C$9:AY$9),Ночь!C$9:AY$9)),O3+I$24),O3+I$24) -> 21:24:51.429 | P4: y | R4: =IFERROR(IF(--MID(-MAX(IF(R3+I$25>IF(Ночь!C$12:AY$12="Нет",Ночь!C$13:AY$13),Ночь!C$13:AY$13)),2,15)>R3,MAX(IF(R3+I$25>IF(Ночь!C$12:AY$12="Нет",Ночь!C$13:AY$13),Ночь!C$13:AY$13)),R3+I$25),R3+I$25) -> 20:47:15
A5: =IFERROR(IF(INDEX(День!$C$3:$AY$3,SMALL(IF(День!$C$3:$AY$3<>"",COLUMN(День!$C$3:$AY$3)-COLUMN(День!$C$3)+1),4))=1,$I$23/2,$I$23),$I$23) -> 01:12:13.333 | B5: =IFERROR(IF(--MID(-MAX(IF(B4+A3>IF(День!C$4:AY$4="Нет",День!C$5:AY$5),День!C$5:AY$5)),2,15)>B4,MAX(IF(B4+A3>IF(День!C$4:AY$4="Нет",День!C$5:AY$5),День!C$5:AY$5)),B4+A3),B4+A3) -> 11:21:40 | C5: z | E5: =IFERROR(IF(--MID(-MAX(IF(E4+I$24>IF(День!C$8:AY$8="Нет",День!C$9:AY$9),День!C$9:AY$9)),2,15)>E4,MAX(IF(E4+I$24>IF(День!C$8:AY$8="Нет",День!C$9:AY$9),День!C$9:AY$9)),E4+I$24),E4+I$24) -> 12:08:34.286 | F5: y | H5: =IFERROR(IF(--MID(-MAX(IF(H4+I$25>IF(День!C$12:AY$12="Нет",День!C$13:AY$13),День!C$13:AY$13)),2,15)>H4,MAX(IF(H4+I$25>IF(День!C$12:AY$12="Нет",День!C$13:AY$13),День!C$13:AY$13)),H4+I$25),H4+I$25) -> 11:18:45 | K5: =IFERROR(IF(INDEX(Ночь!$C$3:$AY$3,SMALL(IF(Ночь!$C$3:$AY$3<>"",COLUMN(Ночь!$C$3:$AY$3)-COLUMN(Ночь!$C$3)+1),3))=1,$I$23/2,$I$23),$I$23) -> 01:12:13.333 | L5: =IFERROR(IF(--MID(-MAX(IF(L4+K3>IF(Ночь!C$4:AY$4="Нет",Ночь!C$5:AY$5),Ночь!C$5:AY$5)),2,15)>L4,MAX(IF(L4+K3>IF(Ночь!C$4:AY$4="Нет",Ночь!C$5:AY$5),Ночь!C$5:AY$5)),L4+K3),L4+K3) -> 22:11:26.667 | M5: z | O5: =IFERROR(IF(--MID(-MAX(IF(O4+I$24>IF(Ночь!C$8:AY$8="Нет",День!C$9:AY$9),Ночь!C$9:AY$9)),2,15)>O4,MAX(IF(O4+I$24>IF(Ночь!C$8:AY$8="Нет",Ночь!C$9:AY$9),Ночь!C$9:AY$9)),O4+I$24),O4+I$24) -> 22:57:42.857 | P5: y | R5: =IFERROR(IF(--MID(-MAX(IF(R4+I$25>IF(Ночь!C$12:AY$12="Нет",Ночь!C$13:AY$13),Ночь!C$13:AY$13)),2,15)>R4,MAX(IF(R4+I$25>IF(Ночь!C$12:AY$12="Нет",Ночь!C$13:AY$13),Ночь!C$13:AY$13)),R4+I$25),R4+I$25) -> 22:08:30
A6: =IFERROR(IF(INDEX(День!$C$3:$AY$3,SMALL(IF(День!$C$3:$AY$3<>"",COLUMN(День!$C$3:$AY$3)-COLUMN(День!$C$3)+1),5))=1,$I$23/2,$I$23),$I$23) -> 01:12:13.333 | B6: =IFERROR(IF(--MID(-MAX(IF(B5+A4>IF(День!C$4:AY$4="Нет",День!C$5:AY$5),День!C$5:AY$5)),2,15)>B5,MAX(IF(B5+A4>IF(День!C$4:AY$4="Нет",День!C$5:AY$5),День!C$5:AY$5)),B5+A4),B5+A4) -> 12:33:53.333 | C6: z | E6: =IFERROR(IF(--MID(-MAX(IF(E5+I$24>IF(День!C$8:AY$8="Нет",День!C$9:AY$9),День!C$9:AY$9)),2,15)>E5,MAX(IF(E5+I$24>IF(День!C$8:AY$8="Нет",День!C$9:AY$9),День!C$9:AY$9)),E5+I$24),E5+I$24) -> 13:41:25.714 | F6: y | H6: =IFERROR(IF(--MID(-MAX(IF(H5+I$25>IF(День!C$12:AY$12="Нет",День!C$13:AY$13),День!C$13:AY$13)),2,15)>H5,MAX(IF(H5+I$25>IF(День!C$12:AY$12="Нет",День!C$13:AY$13),День!C$13:AY$13)),H5+I$25),H5+I$25) -> 12:40:00 | K6: =IFERROR(IF(INDEX(Ночь!$C$3:$AY$3,SMALL(IF(Ночь!$C$3:$AY$3<>"",COLUMN(Ночь!$C$3:$AY$3)-COLUMN(Ночь!$C$3)+1),4))=1,$I$23/2,$I$23),$I$23) -> 01:12:13.333 | L6: =IFERROR(IF(--MID(-MAX(IF(L5+K4>IF(Ночь!C$4:AY$4="Нет",Ночь!C$5:AY$5),Ночь!C$5:AY$5)),2,15)>L5,MAX(IF(L5+K4>IF(Ночь!C$4:AY$4="Нет",Ночь!C$5:AY$5),Ночь!C$5:AY$5)),L5+K4),L5+K4) -> 23:23:40 | M6: z | O6: =IFERROR(IF(--MID(-MAX(IF(O5+I$24>IF(Ночь!C$8:AY$8="Нет",День!C$9:AY$9),Ночь!C$9:AY$9)),2,15)>O5,MAX(IF(O5+I$24>IF(Ночь!C$8:AY$8="Нет",Ночь!C$9:AY$9),Ночь!C$9:AY$9)),O5+I$24),O5+I$24) -> 1.021230159 | P6: y | R6: =IFERROR(IF(--MID(-MAX(IF(R5+I$25>IF(Ночь!C$12:AY$12="Нет",Ночь!C$13:AY$13),Ночь!C$13:AY$13)),2,15)>R5,MAX(IF(R5+I$25>IF(Ночь!C$12:AY$12="Нет",Ночь!C$13:AY$13),Ночь!C$13:AY$13)),R5+I$25),R5+I$25) -> 23:29:45
A7: =IFERROR(IF(INDEX(День!$C$3:$AY$3,SMALL(IF(День!$C$3:$AY$3<>"",COLUMN(День!$C$3:$AY$3)-COLUMN(День!$C$3)+1),6))=1,$I$23/2,$I$23),$I$23) -> 01:12:13.333 | B7: =IFERROR(IF(--MID(-MAX(IF(B6+A5>IF(День!C$4:AY$4="Нет",День!C$5:AY$5),День!C$5:AY$5)),2,15)>B6,MAX(IF(B6+A5>IF(День!C$4:AY$4="Нет",День!C$5:AY$5),День!C$5:AY$5)),B6+A5),B6+A5) -> 13:46:06.667 | C7: z | E7: =IFERROR(IF(--MID(-MAX(IF(E6+I$24>IF(День!C$8:AY$8="Нет",День!C$9:AY$9),День!C$9:AY$9)),2,15)>E6,MAX(IF(E6+I$24>IF(День!C$8:AY$8="Нет",День!C$9:AY$9),День!C$9:AY$9)),E6+I$24),E6+I$24) -> 15:14:17.143 | F7: y | H7: =IFERROR(IF(--MID(-MAX(IF(H6+I$25>IF(День!C$12:AY$12="Нет",День!C$13:AY$13),День!C$13:AY$13)),2,15)>H6,MAX(IF(H6+I$25>IF(День!C$12:AY$12="Нет",День!C$13:AY$13),День!C$13:AY$13)),H6+I$25),H6+I$25) -> 14:01:15 | K7: =IFERROR(IF(INDEX(Ночь!$C$3:$AY$3,SMALL(IF(Ночь!$C$3:$AY$3<>"",COLUMN(Ночь!$C$3:$AY$3)-COLUMN(Ночь!$C$3)+1),5))=1,$I$23/2,$I$23),$I$23) -> 01:12:13.333 | L7: =IFERROR(IF(--MID(-MAX(IF(L6+K5>IF(Ночь!C$4:AY$4="Нет",Ночь!C$5:AY$5),Ночь!C$5:AY$5)),2,15)>L6,MAX(IF(L6+K5>IF(Ночь!C$4:AY$4="Нет",Ночь!C$5:AY$5),Ночь!C$5:AY$5)),L6+K5),L6+K5) -> 1.02492284 | M7: z | O7: =IFERROR(IF(--MID(-MAX(IF(O6+I$24>IF(Ночь!C$8:AY$8="Нет",День!C$9:AY$9),Ночь!C$9:AY$9)),2,15)>O6,MAX(IF(O6+I$24>IF(Ночь!C$8:AY$8="Нет",Ночь!C$9:AY$9),Ночь!C$9:AY$9)),O6+I$24),O6+I$24) -> 1.085714286 | P7: y | R7: =IFERROR(IF(--MID(-MAX(IF(R6+I$25>IF(Ночь!C$12:AY$12="Нет",Ночь!C$13:AY$13),Ночь!C$13:AY$13)),2,15)>R6,MAX(IF(R6+I$25>IF(Ночь!C$12:AY$12="Нет",Ночь!C$13:AY$13),Ночь!C$13:AY$13)),R6+I$25),R6+I$25) -> 1.035416667
A8: =IFERROR(IF(INDEX(День!$C$3:$AY$3,SMALL(IF(День!$C$3:$AY$3<>"",COLUMN(День!$C$3:$AY$3)-COLUMN(День!$C$3)+1),7))=1,$I$23/2,$I$23),$I$23) -> 01:12:13.333 | B8: =IFERROR(IF(--MID(-MAX(IF(B7+A6>IF(День!C$4:AY$4="Нет",День!C$5:AY$5),День!C$5:AY$5)),2,15)>B7,MAX(IF(B7+A6>IF(День!C$4:AY$4="Нет",День!C$5:AY$5),День!C$5:AY$5)),B7+A6),B7+A6) -> 14:58:20 | C8: z | E8: =IFERROR(IF(--MID(-MAX(IF(E7+I$24>IF(День!C$8:AY$8="Нет",День!C$9:AY$9),День!C$9:AY$9)),2,15)>E7,MAX(IF(E7+I$24>IF(День!C$8:AY$8="Нет",День!C$9:AY$9),День!C$9:AY$9)),E7+I$24),E7+I$24) -> 16:47:08.571 | F8: y | H8: =IFERROR(IF(--MID(-MAX(IF(H7+I$25>IF(День!C$12:AY$12="Нет",День!C$13:AY$13),День!C$13:AY$13)),2,15)>H7,MAX(IF(H7+I$25>IF(День!C$12:AY$12="Нет",День!C$13:AY$13),День!C$13:AY$13)),H7+I$25),H7+I$25) -> 15:22:30 | K8: =IFERROR(IF(INDEX(Ночь!$C$3:$AY$3,SMALL(IF(Ночь!$C$3:$AY$3<>"",COLUMN(Ночь!$C$3:$AY$3)-COLUMN(Ночь!$C$3)+1),6))=1,$I$23/2,$I$23),$I$23) -> 01:12:13.333 | L8: =IFERROR(IF(--MID(-MAX(IF(L7+K6>IF(Ночь!C$4:AY$4="Нет",Ночь!C$5:AY$5),Ночь!C$5:AY$5)),2,15)>L7,MAX(IF(L7+K6>IF(Ночь!C$4:AY$4="Нет",Ночь!C$5:AY$5),Ночь!C$5:AY$5)),L7+K6),L7+K6) -> 1.07507716 | M8: z | O8: =IFERROR(IF(--MID(-MAX(IF(O7+I$24>IF(Ночь!C$8:AY$8="Нет",День!C$9:AY$9),Ночь!C$9:AY$9)),2,15)>O7,MAX(IF(O7+I$24>IF(Ночь!C$8:AY$8="Нет",Ночь!C$9:AY$9),Ночь!C$9:AY$9)),O7+I$24),O7+I$24) -> 1.150198413 | P8: y | R8: =IFERROR(IF(--MID(-MAX(IF(R7+I$25>IF(Ночь!C$12:AY$12="Нет",Ночь!C$13:AY$13),Ночь!C$13:AY$13)),2,15)>R7,MAX(IF(R7+I$25>IF(Ночь!C$12:AY$12="Нет",Ночь!C$13:AY$13),Ночь!C$13:AY$13)),R7+I$25),R7+I$25) -> 1.091840278
A9: =IFERROR(IF(INDEX(День!$C$3:$AY$3,SMALL(IF(День!$C$3:$AY$3<>"",COLUMN(День!$C$3:$AY$3)-COLUMN(День!$C$3)+1),8))=1,$I$23/2,$I$23),$I$23) -> 01:12:13.333 | B9: =IFERROR(IF(--MID(-MAX(IF(B8+A7>IF(День!C$4:AY$4="Нет",День!C$5:AY$5),День!C$5:AY$5)),2,15)>B8,MAX(IF(B8+A7>IF(День!C$4:AY$4="Нет",День!C$5:AY$5),День!C$5:AY$5)),B8+A7),B8+A7) -> 16:10:33.333 | C9: z | E9: =IFERROR(IF(--MID(-MAX(IF(E8+I$24>IF(День!C$8:AY$8="Нет",День!C$9:AY$9),День!C$9:AY$9)),2,15)>E8,MAX(IF(E8+I$24>IF(День!C$8:AY$8="Нет",День!C$9:AY$9),День!C$9:AY$9)),E8+I$24),E8+I$24) -> 18:20:00 | F9: y | H9: =IFERROR(IF(--MID(-MAX(IF(H8+I$25>IF(День!C$12:AY$12="Нет",День!C$13:AY$13),День!C$13:AY$13)),2,15)>H8,MAX(IF(H8+I$25>IF(День!C$12:AY$12="Нет",День!C$13:AY$13),День!C$13:AY$13)),H8+I$25),H8+I$25) -> 16:43:45 | K9: =IFERROR(IF(INDEX(Ночь!$C$3:$AY$3,SMALL(IF(Ночь!$C$3:$AY$3<>"",COLUMN(Ночь!$C$3:$AY$3)-COLUMN(Ночь!$C$3)+1),7))=1,$I$23/2,$I$23),$I$23) -> 01:12:13.333 | L9: =IFERROR(IF(--MID(-MAX(IF(L8+K7>IF(Ночь!C$4:AY$4="Нет",Ночь!C$5:AY$5),Ночь!C$5:AY$5)),2,15)>L8,MAX(IF(L8+K7>IF(Ночь!C$4:AY$4="Нет",Ночь!C$5:AY$5),Ночь!C$5:AY$5)),L8+K7),L8+K7) -> 1.125231481 | M9: z | O9: =IFERROR(IF(--MID(-MAX(IF(O8+I$24>IF(Ночь!C$8:AY$8="Нет",День!C$9:AY$9),Ночь!C$9:AY$9)),2,15)>O8,MAX(IF(O8+I$24>IF(Ночь!C$8:AY$8="Нет",Ночь!C$9:AY$9),Ночь!C$9:AY$9)),O8+I$24),O8+I$24) -> 1.21468254 | P9: y | R9: =IFERROR(IF(--MID(-MAX(IF(R8+I$25>IF(Ночь!C$12:AY$12="Нет",Ночь!C$13:AY$13),Ночь!C$13:AY$13)),2,15)>R8,MAX(IF(R8+I$25>IF(Ночь!C$12:AY$12="Нет",Ночь!C$13:AY$13),Ночь!C$13:AY$13)),R8+I$25),R8+I$25) -> 1.148263889
A10: =IFERROR(IF(INDEX(День!$C$3:$AY$3,SMALL(IF(День!$C$3:$AY$3<>"",COLUMN(День!$C$3:$AY$3)-COLUMN(День!$C$3)+1),9))=1,$I$23/2,$I$23),$I$23) -> 01:12:13.333 | B10: =IFERROR(IF(--MID(-MAX(IF(B9+A8>IF(День!C$4:AY$4="Нет",День!C$5:AY$5),День!C$5:AY$5)),2,15)>B9,MAX(IF(B9+A8>IF(День!C$4:AY$4="Нет",День!C$5:AY$5),День!C$5:AY$5)),B9+A8),B9+A8) -> 17:22:46.667 | C10: z | E10: =IFERROR(IF(--MID(-MAX(IF(E9+I$24>IF(День!C$8:AY$8="Нет",День!C$9:AY$9),День!C$9:AY$9)),2,15)>E9,MAX(IF(E9+I$24>IF(День!C$8:AY$8="Нет",День!C$9:AY$9),День!C$9:AY$9)),E9+I$24),E9+I$24) -> 19:52:51.429 | F10: y | H10: =IFERROR(IF(--MID(-MAX(IF(H9+I$25>IF(День!C$12:AY$12="Нет",День!C$13:AY$13),День!C$13:AY$13)),2,15)>H9,MAX(IF(H9+I$25>IF(День!C$12:AY$12="Нет",День!C$13:AY$13),День!C$13:AY$13)),H9+I$25),H9+I$25) -> 18:05:00 | K10: =IFERROR(IF(INDEX(Ночь!$C$3:$AY$3,SMALL(IF(Ночь!$C$3:$AY$3<>"",COLUMN(Ночь!$C$3:$AY$3)-COLUMN(Ночь!$C$3)+1),8))=1,$I$23/2,$I$23),$I$23) -> 01:12:13.333 | L10: =IFERROR(IF(--MID(-MAX(IF(L9+K8>IF(Ночь!C$4:AY$4="Нет",Ночь!C$5:AY$5),Ночь!C$5:AY$5)),2,15)>L9,MAX(IF(L9+K8>IF(Ночь!C$4:AY$4="Нет",Ночь!C$5:AY$5),Ночь!C$5:AY$5)),L9+K8),L9+K8) -> 1.175385802 | M10: z | O10: =IFERROR(IF(--MID(-MAX(IF(O9+I$24>IF(Ночь!C$8:AY$8="Нет",День!C$9:AY$9),Ночь!C$9:AY$9)),2,15)>O9,MAX(IF(O9+I$24>IF(Ночь!C$8:AY$8="Нет",Ночь!C$9:AY$9),Ночь!C$9:AY$9)),O9+I$24),O9+I$24) -> 1.279166667 | P10: y | R10: =IFERROR(IF(--MID(-MAX(IF(R9+I$25>IF(Ночь!C$12:AY$12="Нет",Ночь!C$13:AY$13),Ночь!C$13:AY$13)),2,15)>R9,MAX(IF(R9+I$25>IF(Ночь!C$12:AY$12="Нет",Ночь!C$13:AY$13),Ночь!C$13:AY$13)),R9+I$25),R9+I$25) -> 1.2046875
A11: =IFERROR(IF(INDEX(День!$C$3:$AY$3,SMALL(IF(День!$C$3:$AY$3<>"",COLUMN(День!$C$3:$AY$3)-COLUMN(День!$C$3)+1),10))=1,$I$23/2,$I$23),$I$23) -> 01:12:13.333 | B11: =IFERROR(IF(--MID(-MAX(IF(B10+A9>IF(День!C$4:AY$4="Нет",День!C$5:AY$5),День!C$5:AY$5)),2,15)>B10,MAX(IF(B10+A9>IF(День!C$4:AY$4="Нет",День!C$5:AY$5),День!C$5:AY$5)),B10+A9),B10+A9) -> 18:35:00 | C11: z | E11: =IFERROR(IF(--MID(-MAX(IF(E10+I$24>IF(День!C$8:AY$8="Нет",День!C$9:AY$9),День!C$9:AY$9)),2,15)>E10,MAX(IF(E10+I$24>IF(День!C$8:AY$8="Нет",День!C$9:AY$9),День!C$9:AY$9)),E10+I$24),E10+I$24) -> 21:25:42.857 | F11: y | H11: =IFERROR(IF(--MID(-MAX(IF(H10+I$25>IF(День!C$12:AY$12="Нет",День!C$13:AY$13),День!C$13:AY$13)),2,15)>H10,MAX(IF(H10+I$25>IF(День!C$12:AY$12="Нет",День!C$13:AY$13),День!C$13:AY$13)),H10+I$25),H10+I$25) -> 19:26:15 | K11: =IFERROR(IF(INDEX(Ночь!$C$3:$AY$3,SMALL(IF(Ночь!$C$3:$AY$3<>"",COLUMN(Ночь!$C$3:$AY$3)-COLUMN(Ночь!$C$3)+1),9))=1,$I$23/2,$I$23),$I$23) -> 01:12:13.333 | L11: =IFERROR(IF(--MID(-MAX(IF(L10+K9>IF(Ночь!C$4:AY$4="Нет",Ночь!C$5:AY$5),Ночь!C$5:AY$5)),2,15)>L10,MAX(IF(L10+K9>IF(Ночь!C$4:AY$4="Нет",Ночь!C$5:AY$5),Ночь!C$5:AY$5)),L10+K9),L10+K9) -> 1.225540123 | M11: z | O11: =IFERROR(IF(--MID(-MAX(IF(O10+I$24>IF(Ночь!C$8:AY$8="Нет",День!C$9:AY$9),Ночь!C$9:AY$9)),2,15)>O10,MAX(IF(O10+I$24>IF(Ночь!C$8:AY$8="Нет",Ночь!C$9:AY$9),Ночь!C$9:AY$9)),O10+I$24),O10+I$24) -> 1.343650794 | P11: y | R11: =IFERROR(IF(--MID(-MAX(IF(R10+I$25>IF(Ночь!C$12:AY$12="Нет",Ночь!C$13:AY$13),Ночь!C$13:AY$13)),2,15)>R10,MAX(IF(R10+I$25>IF(Ночь!C$12:AY$12="Нет",Ночь!C$13:AY$13),Ночь!C$13:AY$13)),R10+I$25),R10+I$25) -> 1.261111111
A12: =IFERROR(IF(INDEX(День!$C$3:$AY$3,SMALL(IF(День!$C$3:$AY$3<>"",COLUMN(День!$C$3:$AY$3)-COLUMN(День!$C$3)+1),11))=1,$I$23/2,$I$23),$I$23) -> 01:12:13.333 | B12: =IFERROR(IF(--MID(-MAX(IF(B11+A10>IF(День!C$4:AY$4="Нет",День!C$5:AY$5),День!C$5:AY$5)),2,15)>B11,MAX(IF(B11+A10>IF(День!C$4:AY$4="Нет",День!C$5:AY$5),День!C$5:AY$5)),B11+A10),B11+A10) -> 19:47:13.333 | C12: z | E12: =IFERROR(IF(--MID(-MAX(IF(E11+I$24>IF(День!C$8:AY$8="Нет",День!C$9:AY$9),День!C$9:AY$9)),2,15)>E11,MAX(IF(E11+I$24>IF(День!C$8:AY$8="Нет",День!C$9:AY$9),День!C$9:AY$9)),E11+I$24),E11+I$24) -> 22:58:34.286 | F12: y | H12: =IFERROR(IF(--MID(-MAX(IF(H11+I$25>IF(День!C$12:AY$12="Нет",День!C$13:AY$13),День!C$13:AY$13)),2,15)>H11,MAX(IF(H11+I$25>IF(День!C$12:AY$12="Нет",День!C$13:AY$13),День!C$13:AY$13)),H11+I$25),H11+I$25) -> 20:47:30 | K12: =IFERROR(IF(INDEX(Ночь!$C$3:$AY$3,SMALL(IF(Ночь!$C$3:$AY$3<>"",COLUMN(Ночь!$C$3:$AY$3)-COLUMN(Ночь!$C$3)+1),10))=1,$I$23/2,$I$23),$I$23) -> 01:12:13.333 | L12: =IFERROR(IF(--MID(-MAX(IF(L11+K10>IF(Ночь!C$4:AY$4="Нет",Ночь!C$5:AY$5),Ночь!C$5:AY$5)),2,15)>L11,MAX(IF(L11+K10>IF(Ночь!C$4:AY$4="Нет",Ночь!C$5:AY$5),Ночь!C$5:AY$5)),L11+K10),L11+K10) -> 1.275694444 | M12: z | O12: =IFERROR(IF(--MID(-MAX(IF(O11+I$24>IF(Ночь!C$8:AY$8="Нет",День!C$9:AY$9),Ночь!C$9:AY$9)),2,15)>O11,MAX(IF(O11+I$24>IF(Ночь!C$8:AY$8="Нет",Ночь!C$9:AY$9),Ночь!C$9:AY$9)),O11+I$24),O11+I$24) -> 1.408134921 | P12: y | R12: =IFERROR(IF(--MID(-MAX(IF(R11+I$25>IF(Ночь!C$12:AY$12="Нет",Ночь!C$13:AY$13),Ночь!C$13:AY$13)),2,15)>R11,MAX(IF(R11+I$25>IF(Ночь!C$12:AY$12="Нет",Ночь!C$13:AY$13),Ночь!C$13:AY$13)),R11+I$25),R11+I$25) -> 1.317534722
A13: =IFERROR(IF(INDEX(День!$C$3:$AY$3,SMALL(IF(День!$C$3:$AY$3<>"",COLUMN(День!$C$3:$AY$3)-COLUMN(День!$C$3)+1),12))=1,$I$23/2,$I$23),$I$23) -> 01:12:13.333 | B13: =IFERROR(IF(--MID(-MAX(IF(B12+A11>IF(День!C$4:AY$4="Нет",День!C$5:AY$5),День!C$5:AY$5)),2,15)>B12,MAX(IF(B12+A11>IF(День!C$4:AY$4="Нет",День!C$5:AY$5),День!C$5:AY$5)),B12+A11),B12+A11) -> 20:59:26.667 | C13: z | E13: =IFERROR(IF(--MID(-MAX(IF(E12+I$24>IF(День!C$8:AY$8="Нет",День!C$9:AY$9),День!C$9:AY$9)),2,15)>E12,MAX(IF(E12+I$24>IF(День!C$8:AY$8="Нет",День!C$9:AY$9),День!C$9:AY$9)),E12+I$24),E12+I$24) -> 1.021825397 | F13: y | K13: =IFERROR(IF(INDEX(Ночь!$C$3:$AY$3,SMALL(IF(Ночь!$C$3:$AY$3<>"",COLUMN(Ночь!$C$3:$AY$3)-COLUMN(Ночь!$C$3)+1),11))=1,$I$23/2,$I$23),$I$23) -> 01:12:13.333 | L13: =IFERROR(IF(--MID(-MAX(IF(L12+K11>IF(Ночь!C$4:AY$4="Нет",Ночь!C$5:AY$5),Ночь!C$5:AY$5)),2,15)>L12,MAX(IF(L12+K11>IF(Ночь!C$4:AY$4="Нет",Ночь!C$5:AY$5),Ночь!C$5:AY$5)),L12+K11),L12+K11) -> 1.325848765 | M13: z | O13: =IFERROR(IF(--MID(-MAX(IF(O12+I$24>IF(Ночь!C$8:AY$8="Нет",День!C$9:AY$9),Ночь!C$9:AY$9)),2,15)>O12,MAX(IF(O12+I$24>IF(Ночь!C$8:AY$8="Нет",Ночь!C$9:AY$9),Ночь!C$9:AY$9)),O12+I$24),O12+I$24) -> 1.472619048 | P13: y | R13: =IFERROR(IF(--MID(-MAX(IF(R12+I$25>IF(Ночь!C$12:AY$12="Нет",Ночь!C$13:AY$13),Ночь!C$13:AY$13)),2,15)>R12,MAX(IF(R12+I$25>IF(Ночь!C$12:AY$12="Нет",Ночь!C$13:AY$13),Ночь!C$13:AY$13)),R12+I$25),R12+I$25) -> 1.373958333
A14: =IFERROR(IF(INDEX(День!$C$3:$AY$3,SMALL(IF(День!$C$3:$AY$3<>"",COLUMN(День!$C$3:$AY$3)-COLUMN(День!$C$3)+1),13))=1,$I$23/2,$I$23),$I$23) -> 01:12:13.333 | B14: =IFERROR(IF(--MID(-MAX(IF(B13+A12>IF(День!C$4:AY$4="Нет",День!C$5:AY$5),День!C$5:AY$5)),2,15)>B13,MAX(IF(B13+A12>IF(День!C$4:AY$4="Нет",День!C$5:AY$5),День!C$5:AY$5)),B13+A12),B13+A12) -> 22:11:40 | C14: z | K14: =IFERROR(IF(INDEX(Ночь!$C$3:$AY$3,SMALL(IF(Ночь!$C$3:$AY$3<>"",COLUMN(Ночь!$C$3:$AY$3)-COLUMN(Ночь!$C$3)+1),12))=1,$I$23/2,$I$23),$I$23) -> 01:12:13.333 | L14: =IFERROR(IF(--MID(-MAX(IF(L13+K12>IF(Ночь!C$4:AY$4="Нет",Ночь!C$5:AY$5),Ночь!C$5:AY$5)),2,15)>L13,MAX(IF(L13+K12>IF(Ночь!C$4:AY$4="Нет",Ночь!C$5:AY$5),Ночь!C$5:AY$5)),L13+K12),L13+K12) -> 1.376003086 | M14: z | O14: =IFERROR(IF(--MID(-MAX(IF(O13+I$24>IF(Ночь!C$8:AY$8="Нет",День!C$9:AY$9),Ночь!C$9:AY$9)),2,15)>O13,MAX(IF(O13+I$24>IF(Ночь!C$8:AY$8="Нет",Ночь!C$9:AY$9),Ночь!C$9:AY$9)),O13+I$24),O13+I$24) -> 1.537103175 | P14: y
A15: =IFERROR(IF(INDEX(День!$C$3:$AY$3,SMALL(IF(День!$C$3:$AY$3<>"",COLUMN(День!$C$3:$AY$3)-COLUMN(День!$C$3)+1),14))=1,$I$23/2,$I$23),$I$23) -> 01:12:13.333 | B15: =IFERROR(IF(--MID(-MAX(IF(B14+A13>IF(День!C$4:AY$4="Нет",День!C$5:AY$5),День!C$5:AY$5)),2,15)>B14,MAX(IF(B14+A13>IF(День!C$4:AY$4="Нет",День!C$5:AY$5),День!C$5:AY$5)),B14+A13),B14+A13) -> 23:23:53.333 | C15: z | K15: =IFERROR(IF(INDEX(Ночь!$C$3:$AY$3,SMALL(IF(Ночь!$C$3:$AY$3<>"",COLUMN(Ночь!$C$3:$AY$3)-COLUMN(Ночь!$C$3)+1),13))=1,$I$23/2,$I$23),$I$23) -> 01:12:13.333 | L15: =IFERROR(IF(--MID(-MAX(IF(L14+K13>IF(Ночь!C$4:AY$4="Нет",Ночь!C$5:AY$5),Ночь!C$5:AY$5)),2,15)>L14,MAX(IF(L14+K13>IF(Ночь!C$4:AY$4="Нет",Ночь!C$5:AY$5),Ночь!C$5:AY$5)),L14+K13),L14+K13) -> 1.426157407 | M15: z
A16: =IFERROR(IF(INDEX(День!$C$3:$AY$3,SMALL(IF(День!$C$3:$AY$3<>"",COLUMN(День!$C$3:$AY$3)-COLUMN(День!$C$3)+1),14))=1,$I$23/2,$I$23),$I$23) -> 01:12:13.333 | B16: =IFERROR(IF(--MID(-MAX(IF(B15+A14>IF(День!C$4:AY$4="Нет",День!C$5:AY$5),День!C$5:AY$5)),2,15)>B15,MAX(IF(B15+A14>IF(День!C$4:AY$4="Нет",День!C$5:AY$5),День!C$5:AY$5)),B15+A14),B15+A14) -> 1.02507716 | C16: z | K16: =IFERROR(IF(INDEX(Ночь!$C$3:$AY$3,SMALL(IF(Ночь!$C$3:$AY$3<>"",COLUMN(Ночь!$C$3:$AY$3)-COLUMN(Ночь!$C$3)+1),14))=1,$I$23/2,$I$23),$I$23) -> 01:12:13.333 | L16: =IFERROR(IF(--MID(-MAX(IF(L15+K14>IF(Ночь!C$4:AY$4="Нет",Ночь!C$5:AY$5),Ночь!C$5:AY$5)),2,15)>L15,MAX(IF(L15+K14>IF(Ночь!C$4:AY$4="Нет",Ночь!C$5:AY$5),Ночь!C$5:AY$5)),L15+K14),L15+K14) -> 1.476311728 | M16: z
B18: ЛВП | E18: Х120 | H18: X101
B20: Время такта(мин.) | H20: ЛВП | I20: Х120 | J20: х101
A21: лвп x2шт | B21: 65 | F21: коэф | H21: =B25/(B26/2*B21) -> 1.111111111 | I21: =B25/(B27*B22) -> 1.28968254 | J21: =B25/(B28*B22) -> 1.128472222
A22: Х120 | B22: 72
A23: Х101 | B23: 72 | F23: время такта ЛВП от плана | H23: =(B21*H21) -> 72.22222222 | I23: =H23*TIME(0,1,0) -> 01:12:13.333
F24: время такта Х120 от плана | H24: =(B22*I21) -> 92.85714286 | I24: =H24*TIME(0,1,0) -> 01:32:51.429
A25: Фонд общего рабочего времени | B25: 650 | F25: время такта Х101 от плана | H25: =(B22*J21) -> 81.25 | I25: =H25*TIME(0,1,0) -> 01:21:15
A26: План ЛВП | B26: =День!B21 -> 18 | D26: =LOOKUP(2,1/(День!C2:AX2<>""),День!C2:AX2) -> 19:47
A27: план Х120 | B27: =День!B22 -> 7 | D27: =LOOKUP(2,1/(День!C7:AY7<>""),День!C7:AY7) -> 19:52
A28: план Х101 | B28: =День!B23 -> 8 | D28: =LOOKUP(2,1/(День!C11:AY11<>""),День!C11:AY11) -> 19:26

Sheet Отчет
B2: Дневная смена | F2: Ночная смена
B3: Выкатка вагонов не по плану, шт. | C3: ЛВП | D3: =COUNTIF(День!$C$4:$AY$4,"Нет") -> 0 | F3: Выкатка вагонов не по плану, шт. | G3: ЛВП | H3: =COUNTIF(Ночь!$C$4:$AY$4,"Нет") -> 1
C4: Х101 | D4: =COUNTIF(День!$C$8:$AY$8,"Нет") -> 0 | G4: Х101 | H4: =COUNTIF(Ночь!$C$8:$AY$8,"Нет") -> 0
C5: Х120 | D5: =COUNTIF(День!$C$12:$AY$12,"Нет") -> 0 | G5: Х120 | H5: =COUNTIF(Ночь!$C$12:$AY$12,"Нет") -> 0
B6: Количество вагонов, шт. | C6: ЛВП | D6: =День!BA3 -> 0 | F6: Количество вагонов, шт. | G6: ЛВП | H6: =Ночь!BA2 -> 0
C7: Х101 | D7: =День!BA7 -> 0 | G7: Х101 | H7: =Ночь!BA7 -> 0
C8: Х120 | D8: =День!BA11 -> 0 | G8: Х120 | H8: =Ночь!BA11 -> 0
B9: Время задержки выкатки(ч:мм) | C9: ЛВП | D9: =SUM(День!C6:AY6) -> 00:00:00 | F9: Время задержки выкатки(ч:мм) | G9: ЛВП | H9: =SUM(Ночь!C6:AY6) -> 00:25:00
C10: Х101 | D10: =SUM(День!C10:AY10) -> 00:00:00 | G10: Х101 | H10: =SUM(Ночь!C10:AY10) -> 00:00:00
C11: Х120 | D11: =SUM(День!C14:AY14) -> 00:00:00 | G11: Х120 | H11: =SUM(Ночь!C14:AY14) -> 00:00:00
B15: Общее за сутки | G15: План на сутки | I15: По факту выпущено | L15: Общее
B16: Выкатка вагонов не по плану, шт. | C16: ЛВП | D16: =SUM(D3,H3) -> 1 | E16: =SUM(D16:D18) -> 1 | G16: ЛВП | H16: =День!B21 -> 18 | I16: =D19 -> 0 | L16: =SUM(I16:K18) -> 0
C17: Х101 | D17: 0 | G17: Х101 | H17: =День!B22 -> 7 | I17: =D20 -> 0
C18: Х120 | D18: 0 | G18: Х120 | H18: =День!B23 -> 8 | I18: =D21 -> 0
B19: Количество вагонов, шт. | C19: ЛВП | D19: =SUM(D6,H6) -> 0 | E19: =SUM(D19:D21) -> 0
C20: Х101 | D20: 0
C21: Х120 | D21: 0
B22: Время задержки выкатки(ч:мм) | C22: ЛВП | D22: =SUM(H9+D9) -> 00:25:00 | E22: =SUM(D22:D24) -> 00:25:00
C23: Х101 | D23: =SUM(D10+H10) -> 00:00:00
C24: Х120 | D24: =SUM(D11+H11) -> 00:00:00
